Workbook

Sheet Data summary
A1: RUN # 1 and 'RUN # 2 | B1: Rate classes | C1: Weather station used for normalization | H1: Test Year
A2: 1 | B2: Residential class | C2: North Bay | H2: 2004
A3: 2 | B3: Streetlights
A4: 3 | B4: Sentinellights
A5: 4 | B5: General service >50kW
A6: 5 | B6: General service <50kW
A7: 6 | B7: Intermediate
A10: Monthly kWh by class (with actual weather) | C10: Jan | D10: Feb | E10: Mar | F10: Apr | G10: May | H10: Jun | I10: Jul | J10: Aug | K10: Sep | L10: Oct | M10: Nov | N10: Dec | O10: TOTAL
A11: 1 | B11: Residential class | C11: 3754748.785 | D11: 2727866.439 | E11: 2358962.424 | F11: 2166392.317 | G11: 1905828.076 | H11: 1593379.756 | I11: 1599552.455 | J11: 1593350.98 | K11: 1582450.082 | L11: 1991761.343 | M11: 2384692.828 | N11: 3732021.275 | O11: 27391006.76
A12: 2 | B12: Streetlights | C12: 125269.6225 | D12: 106372.9992 | E12: 100747.0738 | F12: 79802.60736 | G12: 70356.15301 | H12: 61353.3047 | I12: 67633.23472 | J12: 79020.92021 | K12: 90277.76034 | L12: 108590.2342 | M12: 118404.6487 | N12: 117504.8611 | O12: 1125333.42
A13: 3 | B13: Sentinellights | C13: 7386.956214 | D13: 6272.649712 | E13: 5940.916122 | F13: 4702.251609 | G13: 4145.626921 | H13: 3615.174407 | I13: 3983.908202 | J13: 4635.385591 | K13: 5295.753959 | L13: 6369.974864 | M13: 6940.41263 | N13: 6887.713506 | O13: 66176.72374
A14: 4 | B14: General service >50kW | C14: 2491538.573 | D14: 2194842.198 | E14: 2278232.585 | F14: 1950481.166 | G14: 1803087.398 | H14: 1722155.158 | I14: 1595399.849 | J14: 1645065.592 | K14: 1716972.28 | L14: 1816229.46 | M14: 1813884.717 | N14: 2206347.663 | O14: 23234236.64
A15: 5 | B15: General service <50kW | C15: 1526793.756 | D15: 1223166.1 | E15: 1211406.783 | F15: 1017376.962 | G15: 940608.3729 | H15: 860587.5937 | I15: 869932.018 | J15: 875491.997 | K15: 863031.8815 | L15: 995187.7701 | M15: 1110975.03 | N15: 1578113.521 | O15: 13072671.78
A16: 6 | B16: Intermediate | C16: 4782635.306 | D16: 4686471.614 | E16: 4944033.219 | F16: 4605870.697 | G16: 4678218.373 | H16: 4534933.013 | I16: 3246471.535 | J16: 4589960.126 | K16: 4500405.242 | L16: 4276484.218 | M16: 4402615.363 | N16: 3456885.967 | O16: 52704984.67
A19: Monthly kWh by class (with normalized weather) | C19: Jan | D19: Feb | E19: Mar | F19: Apr | G19: May | H19: Jun | I19: Jul | J19: Aug | K19: Sep | L19: Oct | M19: Nov | N19: Dec | O19: TOTAL
A20: 1 | B20: Residential class | C20: 3409639.986 | D20: 2823511.362 | E20: 2467268.464 | F20: 2113546.676 | G20: 1833181.951 | H20: 1583958.515 | I20: 1604012.302 | J20: 1582473.929 | K20: 1692660.77 | L20: 2084392.999 | M20: 2483977.039 | N20: 3574293.793 | O20: 27252917.78
A21: 2 | B21: Streetlights | C21: 125269.6225 | D21: 106372.9992 | E21: 100747.0738 | F21: 79802.60736 | G21: 70356.15301 | H21: 61353.3047 | I21: 67633.23472 | J21: 79020.92021 | K21: 90277.76034 | L21: 108590.2342 | M21: 118404.6487 | N21: 117504.8611 | O21: 1125333.42
A22: 3 | B22: Sentinellights | C22: 7386.956214 | D22: 6272.649712 | E22: 5940.916122 | F22: 4702.251609 | G22: 4145.626921 | H22: 3615.174407 | I22: 3983.908202 | J22: 4635.385591 | K22: 5295.753959 | L22: 6369.974864 | M22: 6940.41263 | N22: 6887.713506 | O22: 66176.72374
A23: 4 | B23: General service >50kW | C23: 2366576.218 | D23: 2229474.798 | E23: 2317449.718 | F23: 1931345.995 | G23: 1762515.209 | H23: 1710132.866 | I23: 1601090.986 | J23: 1631185.566 | K23: 1817157.133 | L23: 1849770.969 | M23: 1849835.086 | N23: 2149235.245 | O23: 23215769.79
A24: 5 | B24: General service <50kW | C24: 1414244.463 | D24: 1254358.49 | E24: 1246728.305 | F24: 1000142.572 | G24: 916270.0147 | H24: 857124.8867 | I24: 871571.2015 | J24: 871494.2181 | K24: 901705.9408 | L24: 1025397.453 | M24: 1143354.291 | N24: 1526674.332 | O24: 13029066.17
A25: 6 | B25: Intermediate | C25: 4782635.306 | D25: 4686471.614 | E25: 4944033.219 | F25: 4605870.697 | G25: 4678218.373 | H25: 4534933.013 | I25: 3246471.535 | J25: 4589960.126 | K25: 4500405.242 | L25: 4276484.218 | M25: 4402615.363 | N25: 3456885.967 | O25: 52704984.67
A28: Residential class information | C28: Equipment saturation
B29: Electric space heating | C29: 0.3216079096
B30: Electric water heating | C30: 0.4490291262
B31: Air conditioning | C31: 0.1345014694
B32: Baseload | C32: 1
A35: General service >50kW | C35: 2004 kWh (Actual) | D35: 2004 kWh (Weather Corrected)
B36: Weather sensitive load | C36: 13131546.93 | D36: 13113080.08
B37: Non-weather sensitive load | C37: 10102689.71 | D37: 10102689.71
B38: TOTAL | C38: 23234236.64 | D38: 23215769.79
A41: Intermediate | C41: 2004 kWh (Actual) | D41: 2004 kWh (Weather Corrected)
B42: Weather sensitive load | C42: 0 | D42: 0
B43: Non-weather sensitive load | C43: 52704984.67 | D43: 52704984.67
B44: TOTAL | C44: 52704984.67 | D44: 52704984.67

Sheet Hourly load shapes by class
A1: ALL UNITS IN GWh | E1: 2004 Load Shape | M1: 2021 Load Shape
A2: Year | B2: Month | C2: Day | D2: Hour (EST) | E2: Residential | F2: GS<50 kW | G2: GS>50kW | H2: Intermediate Use | I2: Sentinel Lighting | J2: Street Lighting | K2: TOTAL LDC sales | M2: =E2 -> Residential | N2: GS<50 kW | O2: GS>50kW | P2: Intermediate Use | Q2: Sentinel Lighting | R2: Street Lighting | S2: TOTAL LDC sales | V2: Residential | W2: GS<50 kW | X2: GS>50 kW | Y2: =P2 -> Intermediate Use | Z2: Sentinel | AA2: Street Lighting
A3: 2004 | B3: 1 | C3: 1 | D3: 1 | E3: 0.003846924552 | F3: 0.001936830608 | G3: 0.002447977289 | H3: 0.002548251881 | I3: 1.562781628e-05 | J3: 0.0002650199336 | K3: =SUM(E3:J3) -> 0.01106063208 | M3: =E3*V$5 -> 0.003321860718 | N3: 0.001628481355 | O3: 0.002465270213 | P3: 0.0009654930706 | Q3: 2.296408834e-06 | R3: 0.000106847756 | S3: =SUM(M3:R3) -> 0.00849024952 | U3: 2004 | V3: ='Data summary'!O11 -> 27391006.76 | W3: ='Data summary'!O15 -> 13072671.78 | X3: ='Data summary'!O14 -> 23234236.64 | Y3: ='Data summary'!O16 -> 52704984.67 | Z3: ='Data summary'!O13 -> 66176.72374 | AA3: ='Data summary'!O12 -> 1125333.42 | AB3: =SUM(V3:AA3) -> 117594410
A4: 2004 | B4: 1 | C4: 1 | D4: 2 | E4: 0.003664618382 | F4: 0.001930185975 | G4: 0.002435879537 | H4: 0.002539333969 | I4: 1.562781628e-05 | J4: 0.0002650199336 | K4: 0.01085066561 | M4: =E4*V$5 -> 0.003164437379 | N4: =F4*W$5 -> 0.001622894567 | O4: =G4*X$5 -> 0.002453087 | P4: =H4*Y$5 -> 0.0009621142121 | Q4: =I4*Z$5 -> 2.296408834e-06 | R4: =J4*AA$5 -> 0.000106847756 | S4: 0.008311677322 | U4: 2021 Forecast | V4: 23652428.88 | W4: 10991463.15 | X4: 23398367.19 | Y4: 19969100.33 | Z4: 9724.251314 | AA4: 453699.2709 | AB4: =SUM(V4:AA4) -> 78474783.07
A5: 2004 | B5: 1 | C5: 1 | D5: 3 | E5: 0.003270321031 | F5: 0.001969669762 | G5: 0.002434443018 | H5: 0.00253362711 | I5: 1.562781628e-05 | J5: 0.0002650199336 | K5: 0.01048870867 | M5: 0.002823957376 | N5: 0.001656092417 | O5: 0.002451640333 | P5: 0.0009599519716 | Q5: 2.296408834e-06 | R5: 0.000106847756 | S5: 0.008000786263 | U5: Scaling Factor | V5: =V4/V3 -> 0.8635107532 | W5: =W4/W3 -> 0.8407969948 | X5: 1.007064168 | Y5: 0.3788844728 | Z5: 0.14694368 | AA5: 0.4031687524
A6: 2004 | B6: 1 | C6: 1 | D6: 4 | E6: 0.003365932504 | F6: 0.001879117024 | G6: 0.002438878434 | H6: 0.002547086598 | I6: 1.562781628e-05 | J6: 0.0002650199336 | K6: 0.01051166231 | M6: 0.002906518911 | N6: 0.001579955947 | O6: 0.002456107082 | P6: 0.0009650515629 | Q6: 2.296408834e-06 | R6: 0.000106847756 | S6: 0.008016777667
A7: 2004 | B7: 1 | C7: 1 | D7: 5 | E7: 0.003401968475 | F7: 0.001860773083 | G7: 0.002491742649 | H7: 0.002550249368 | I7: 1.562781628e-05 | J7: 0.0002650199336 | K7: 0.01058538132 | M7: 0.00293763636 | N7: 0.001564532416 | O7: 0.002509344738 | P7: 0.000966249887 | Q7: 2.296408834e-06 | R7: 0.000106847756 | S7: 0.008086907567
A8: 2004 | B8: 1 | C8: 1 | D8: 6 | E8: 0.003621038669 | F8: 0.001800924857 | G8: 0.002567067184 | H8: 0.002559581832 | I8: 1.562781628e-05 | J8: 0.0002650199336 | K8: 0.01082926029 | M8: 0.003126805828 | N8: 0.001514212208 | O8: 0.002585201378 | P8: 0.0009697858128 | Q8: 2.296408834e-06 | R8: 0.000106847756 | S8: 0.008305149392
A9: 2004 | B9: 1 | C9: 1 | D9: 7 | E9: 0.003672174982 | F9: 0.001727902957 | G9: 0.002752601733 | H9: 0.00255597752 | I9: 1.562781628e-05 | J9: 0.0002650199336 | K9: 0.01098930494 | M9: 0.003170962585 | N9: 0.001452815613 | O9: 0.002772046575 | P9: 0.0009684201952 | Q9: 2.296408834e-06 | R9: 0.000106847756 | S9: 0.008473389133
A10: 2004 | B10: 1 | C10: 1 | D10: 8 | E10: 0.003855504924 | F10: 0.001649428376 | G10: 0.003008053395 | H10: 0.002527316767 | I10: 1.562781628e-05 | J10: 0.0002650199336 | K10: 0.01132095121 | M10: 0.003329269961 | N10: 0.001386834421 | O10: 0.00302930279 | P10: 0.0009575610807 | Q10: 2.296408834e-06 | R10: 0.000106847756 | S10: 0.008812112418
A11: 2004 | B11: 1 | C11: 1 | D11: 9 | E11: 0.004563043256 | F11: 0.001690676958 | G11: 0.003060505619 | H11: 0.002505269748 | I11: 6.516799702e-06 | J11: 0.0001105133176 | K11: 0.0119365257 | M11: 0.003940236919 | N11: 0.001421516105 | O11: 0.003082125546 | P11: 0.0009492078075 | Q11: 9.576025298e-07 | R11: 4.455551639e-05 | S11: 0.009438599496
A12: 2004 | B12: 1 | C12: 1 | D12: 10 | E12: 0.005379155119 | F12: 0.001624027049 | G12: 0.003097703589 | H12: 0.002487631852 | I12: 0 | J12: 0 | K12: 0.01258851761 | M12: 0.004644958288 | N12: 0.001365477062 | O12: 0.003119586288 | P12: 0.0009425250825 | Q12: 0 | R12: 0 | S12: 0.01007254672
A13: 2004 | B13: 1 | C13: 1 | D13: 11 | E13: 0.005039035177 | F13: 0.001706273455 | G13: 0.003044371103 | H13: 0.002427865318 | I13: 0 | J13: 0 | K13: 0.01221754505 | M13: 0.004351261061 | N13: 0.001434629593 | O13: 0.003065877052 | P13: 0.000919880471 | Q13: 0 | R13: 0 | S13: 0.009771648178
A14: 2004 | B14: 1 | C14: 1 | D14: 12 | E14: 0.005070849657 | F14: 0.001817312718 | G14: 0.003012992868 | H14: 0.002428850366 | I14: 0 | J14: 0 | K14: 0.01233000561 | M14: 0.004378733207 | N14: 0.001527991072 | O14: 0.003034277157 | P14: 0.0009202536902 | Q14: 0 | R14: 0 | S14: 0.009861255125
A15: 2004 | B15: 1 | C15: 1 | D15: 13 | E15: 0.004479268978 | F15: 0.001775113949 | G15: 0.003086086686 | H15: 0.00243280915 | I15: 0 | J15: 0 | K15: 0.01177327876 | M15: 0.003867896929 | N15: 0.001492510473 | O15: 0.003107887321 | P15: 0.0009217536122 | Q15: 0 | R15: 0 | S15: 0.009390048336
A16: 2004 | B16: 1 | C16: 1 | D16: 14 | E16: 0.004635937708 | F16: 0.001779171519 | G16: 0.00311556443 | H16: 0.00247252925 | I16: 0 | J16: 0 | K16: 0.01200320291 | M16: 0.004003182062 | N16: 0.001495922066 | O16: 0.003137573301 | P16: 0.0009368029412 | Q16: 0 | R16: 0 | S16: 0.00957348037
A17: 2004 | B17: 1 | C17: 1 | D17: 15 | E17: 0.004870126822 | F17: 0.00176871025 | G17: 0.003096241202 | H17: 0.00247275467 | I17: 0 | J17: 0 | K17: 0.01220783294 | M17: 0.00420540688 | N17: 0.001487126263 | O17: 0.003118113571 | P17: 0.0009368883493 | Q17: 0 | R17: 0 | S17: 0.009747535063
A18: 2004 | B18: 1 | C18: 1 | D18: 16 | E18: 0.004912962187 | F18: 0.001652858762 | G18: 0.00307243422 | H18: 0.00244698918 | I18: 0 | J18: 0 | K18: 0.01208524435 | M18: 0.004242395678 | N18: 0.00138971868 | O18: 0.003094138412 | P18: 0.0009271262054 | Q18: 0 | R18: 0 | S18: 0.009653378975
A19: 2004 | B19: 1 | C19: 1 | D19: 17 | E19: 0.004840422806 | F19: 0.00170389235 | G19: 0.002963963693 | H19: 0.002445349167 | I19: 5.204063134e-06 | J19: 8.825164319e-05 | K19: 0.01204708372 | M19: 0.004179757143 | N19: 0.001432627567 | O19: 0.002984901632 | P19: 0.0009265048297 | Q19: 7.647041877e-07 | R19: 3.558030489e-05 | S19: 0.009560136181
A20: 2004 | B20: 1 | C20: 1 | D20: 18 | E20: 0.005271351656 | F20: 0.001714667228 | G20: 0.002936017857 | H20: 0.002501022265 | I20: 1.562781628e-05 | J20: 0.0002650199336 | K20: 0.01270370676 | M20: 0.004551868839 | N20: 0.001441687053 | O20: 0.002956758381 | P20: 0.0009475985023 | Q20: 2.296408834e-06 | R20: 0.000106847756 | S20: 0.01000705694
A21: 2004 | B21: 1 | C21: 1 | D21: 19 | E21: 0.005782316445 | F21: 0.001698271054 | G21: 0.002843115797 | H21: 0.002512027731 | I21: 1.562781628e-05 | J21: 0.0002650199336 | K21: 0.01311637878 | M21: 0.004993092429 | N21: 0.001427901198 | O21: 0.002863200045 | P21: 0.0009517683024 | Q21: 2.296408834e-06 | R21: 0.000106847756 | S21: 0.01034510614
A22: 2004 | B22: 1 | C22: 1 | D22: 20 | E22: 0.006212100791 | F22: 0.001751631823 | G22: 0.002783970999 | H22: 0.002524715195 | I22: 1.562781628e-05 | J22: 0.0002650199336 | K22: 0.01355306656 | M22: 0.005364215833 | N22: 0.001472766773 | O22: 0.002803637438 | P22: 0.0009565753857 | Q22: 2.296408834e-06 | R22: 0.000106847756 | S22: 0.0107063396
A23: 2004 | B23: 1 | C23: 1 | D23: 21 | E23: 0.005708260418 | F23: 0.001868252972 | G23: 0.002721102561 | H23: 0.002516419061 | I23: 1.562781628e-05 | J23: 0.0002650199336 | K23: 0.01309468276 | M23: 0.004929144253 | N23: 0.001570821484 | O23: 0.002740324887 | P23: 0.0009534321092 | Q23: 2.296408834e-06 | R23: 0.000106847756 | S23: 0.0103028669
A24: 2004 | B24: 1 | C24: 1 | D24: 22 | E24: 0.005329173022 | F24: 0.001672389916 | G24: 0.002610370074 | H24: 0.002486679993 | I24: 1.562781628e-05 | J24: 0.0002650199336 | K24: 0.01237926075 | M24: 0.00460179821 | N24: 0.001406140416 | O24: 0.002628810167 | P24: 0.000942164438 | Q24: 2.296408834e-06 | R24: 0.000106847756 | S24: 0.009688057396
A25: 2004 | B25: 1 | C25: 1 | D25: 23 | E25: 0.00500995987 | F25: 0.001664008635 | G25: 0.002580015805 | H25: 0.002480885864 | I25: 1.562781628e-05 | J25: 0.0002650199336 | K25: 0.01201551792 | M25: 0.004326154221 | N25: 0.001399093459 | O25: 0.00259824147 | P25: 0.0009399691326 | Q25: 2.296408834e-06 | R25: 0.000106847756 | S25: 0.009372602448
A26: 2004 | B26: 1 | C26: 1 | D26: 24 | E26: 0.004455143732 | F26: 0.001818715073 | G26: 0.00257252024 | H26: 0.00247161068 | I26: 1.562781628e-05 | J26: 0.0002650199336 | K26: 0.01159863747 | M26: 0.003847064519 | N26: 0.001529170168 | O26: 0.002590692956 | P26: 0.0009364549094 | Q26: 2.296408834e-06 | R26: 0.000106847756 | S26: 0.009012526717
A27: 2004 | B27: 1 | C27: 2 | D27: 1 | E27: 0.003892782608 | F27: 0.001853505801 | G27: 0.002425839583 | H27: 0.002508780792 | I27: 1.562781628e-05 | J27: 0.0002650199336 | K27: 0.01096155653 | M27: 0.003361459642 | N27: 0.001558422107 | O27: 0.002442976122 | P27: 0.0009505380876 | Q27: 2.296408834e-06 | R27: 0.000106847756 | S27: 0.008422540123
A28: 2004 | B28: 1 | C28: 2 | D28: 2 | E28: 0.003600260264 | F28: 0.001799480415 | G28: 0.002389322514 | H28: 0.002521738459 | I28: 1.562781628e-05 | J28: 0.0002650199336 | K28: 0.0105914494 | M28: 0.003108863452 | N28: 0.001512997725 | O28: 0.002406201091 | P28: 0.0009554475466 | Q28: 2.296408834e-06 | R28: 0.000106847756 | S28: 0.008092653979
A29: 2004 | B29: 1 | C29: 2 | D29: 3 | E29: 0.003228907749 | F29: 0.001818466584 | G29: 0.002368368542 | H29: 0.002522264071 | I29: 1.562781628e-05 | J29: 0.0002650199336 | K29: 0.0102186547 | M29: 0.002788196563 | N29: 0.001528961239 | O29: 0.002385099096 | P29: 0.0009556466928 | Q29: 2.296408834e-06 | R29: 0.000106847756 | S29: 0.007767047754
A30: 2004 | B30: 1 | C30: 2 | D30: 4 | E30: 0.003258496408 | F30: 0.001788433649 | G30: 0.002376453803 | H30: 0.002513973935 | I30: 1.562781628e-05 | J30: 0.0002650199336 | K30: 0.01021800554 | M30: 0.002813746687 | N30: 0.001503709638 | O30: 0.002393241473 | P30: 0.0009525056888 | Q30: 2.296408834e-06 | R30: 0.000106847756 | S30: 0.007772347651
A31: 2004 | B31: 1 | C31: 2 | D31: 5 | E31: 0.003255869776 | F31: 0.001818238256 | G31: 0.00243771287 | H31: 0.002508876757 | I31: 1.562781628e-05 | J31: 0.0002650199336 | K31: 0.01030134541 | M31: 0.002811478563 | N31: 0.001528769262 | O31: 0.002454933284 | P31: 0.0009505744473 | Q31: 2.296408834e-06 | R31: 0.000106847756 | S31: 0.00785489972
A32: 2004 | B32: 1 | C32: 2 | D32: 6 | E32: 0.003395828851 | F32: 0.001772969375 | G32: 0.002555573902 | H32: 0.002500679888 | I32: 1.562781628e-05 | J32: 0.0002650199336 | K32: 0.01050569976 | M32: 0.002932334729 | N32: 0.001490707322 | O32: 0.002573626906 | P32: 0.0009474687808 | Q32: 2.296408834e-06 | R32: 0.000106847756 | S32: 0.008053281902
A33: 2004 | B33: 1 | C33: 2 | D33: 7 | E33: 0.003498462296 | F33: 0.001753452703 | G33: 0.002772249484 | H33: 0.00251753936 | I33: 1.562781628e-05 | J33: 0.0002650199336 | K33: 0.01082235159 | M33: 0.003020959812 | N33: 0.001474297764 | O33: 0.002791833121 | P33: 0.0009538565732 | Q33: 2.296408834e-06 | R33: 0.000106847756 | S33: 0.008350091435
A34: 2004 | B34: 1 | C34: 2 | D34: 8 | E34: 0.003669548832 | F34: 0.001858651164 | G34: 0.003195217977 | H34: 0.002509411366 | I34: 1.562781628e-05 | J34: 0.0002650199336 | K34: 0.01151347709 | M34: 0.003168694876 | N34: 0.001562748313 | O34: 0.003217789534 | P34: 0.0009507770022 | Q34: 2.296408834e-06 | R34: 0.000106847756 | S34: 0.00900915389
A35: 2004 | B35: 1 | C35: 2 | D35: 9 | E35: 0.004336208174 | F35: 0.001996133384 | G35: 0.003269506574 | H35: 0.002479281536 | I35: 6.516799702e-06 | J35: 0.0001105133176 | K35: 0.01219815979 | M35: 0.003744362386 | N35: 0.001678342951 | O35: 0.003292602918 | P35: 0.0009393612777 | Q35: 9.576025298e-07 | R35: 4.455551639e-05 | S35: 0.009700182652
A36: 2004 | B36: 1 | C36: 2 | D36: 10 | E36: 0.004997778188 | F36: 0.001998155097 | G36: 0.003284605943 | H36: 0.002408265823 | I36: 0 | J36: 0 | K36: 0.01268880505 | M36: 0.004315635207 | N36: 0.001680042801 | O36: 0.003307808952 | P36: 0.0009124545265 | Q36: 0 | R36: 0 | S36: 0.01021594149
A37: 2004 | B37: 1 | C37: 2 | D37: 11 | E37: 0.004840787929 | F37: 0.002065565301 | G37: 0.003234881264 | H37: 0.002400474308 | I37: 0 | J37: 0 | K37: 0.0125417088 | M37: 0.004180072431 | N37: 0.001736721098 | O37: 0.00325773301 | P37: 0.0009095024426 | Q37: 0 | R37: 0 | S37: 0.01008402898
A38: 2004 | B38: 1 | C38: 2 | D38: 12 | E38: 0.005193961734 | F38: 0.002033451706 | G38: 0.003171202164 | H38: 0.002389522923 | I38: 0 | J38: 0 | K38: 0.01278813853 | M38: 0.004485041809 | N38: 0.001709720083 | O38: 0.00319360407 | P38: 0.0009053531328 | Q38: 0 | R38: 0 | S38: 0.01029371909
A39: 2004 | B39: 1 | C39: 2 | D39: 13 | E39: 0.00421050974 | F39: 0.002061311332 | G39: 0.003217164426 | H39: 0.002384978247 | I39: 0 | J39: 0 | K39: 0.01187396374 | M39: 0.003635820437 | N39: 0.001733144373 | O39: 0.003239891017 | P39: 0.0009036312257 | Q39: 0 | R39: 0 | S39: 0.009512487052
A40: 2004 | B40: 1 | C40: 2 | D40: 14 | E40: 0.004617845757 | F40: 0.002044306509 | G40: 0.003400220457 | H40: 0.002379478613 | I40: 0 | J40: 0 | K40: 0.01244185134 | M40: 0.003987559468 | N40: 0.001718846769 | O40: 0.003424240186 | P40: 0.0009015474998 | Q40: 0 | R40: 0 | S40: 0.01003219392
A41: 2004 | B41: 1 | C41: 2 | D41: 15 | E41: 0.00458518809 | F41: 0.002064285541 | G41: 0.003371073541 | H41: 0.002376198586 | I41: 0 | J41: 0 | K41: 0.01239674576 | M41: 0.003959359221 | N41: 0.001735645079 | O41: 0.003394887372 | P41: 0.0009003047483 | Q41: 0 | R41: 0 | S41: 0.009990196421
A42: 2004 | B42: 1 | C42: 2 | D42: 16 | E42: 0.004848221003 | F42: 0.0020994488 | G42: 0.003324084715 | H42: 0.002376003356 | I42: 0 | J42: 0 | K42: 0.01264775787 | M42: 0.00418649097 | N42: 0.001765210242 | O42: 0.003347566609 | P42: 0.0009002307786 | Q42: 0 | R42: 0 | S42: 0.0101994986
A43: 2004 | B43: 1 | C43: 2 | D43: 17 | E43: 0.004268297519 | F43: 0.002265832566 | G43: 0.003156140184 | H43: 0.002388144216 | I43: 5.204063134e-06 | J43: 8.825164319e-05 | K43: 0.01217187019 | M43: 0.003685720806 | N43: 0.001905105212 | O43: 0.00317843569 | P43: 0.000904830762 | Q43: 7.647041877e-07 | R43: 3.558030489e-05 | S43: 0.009710437479
A44: 2004 | B44: 1 | C44: 2 | D44: 18 | E44: 0.004967674154 | F44: 0.002082893247 | G44: 0.003082345119 | H44: 0.00244136629 | I44: 1.562781628e-05 | J44: 0.0002650199336 | K44: 0.01285492656 | M44: 0.004289640051 | N44: 0.001751290383 | O44: 0.003104119323 | P44: 0.0009249957797 | Q44: 2.296408834e-06 | R44: 0.000106847756 | S44: 0.0101791897
A45: 2004 | B45: 1 | C45: 2 | D45: 19 | E45: 0.005350381619 | F45: 0.001957897893 | G45: 0.003031799457 | H45: 0.00244620826 | I45: 1.562781628e-05 | J45: 0.0002650199336 | K45: 0.01306693498 | M45: 0.004620112061 | N45: 0.001646194664 | O45: 0.003053216599 | P45: 0.0009268303267 | Q45: 2.296408834e-06 | R45: 0.000106847756 | S45: 0.01035549782
A46: 2004 | B46: 1 | C46: 2 | D46: 20 | E46: 0.005635474407 | F46: 0.001808841046 | G46: 0.002961562709 | H46: 0.00243496248 | I46: 1.562781628e-05 | J46: 0.0002650199336 | K46: 0.01312148839 | M46: 0.00486629275 | N46: 0.001520868115 | O46: 0.002982483686 | P46: 0.0009225694752 | Q46: 2.296408834e-06 | R46: 0.000106847756 | S46: 0.01040135819
A47: 2004 | B47: 1 | C47: 2 | D47: 21 | E47: 0.005220455487 | F47: 0.002097523452 | G47: 0.002940193802 | H47: 0.002446274336 | I47: 1.562781628e-05 | J47: 0.0002650199336 | K47: 0.01298509483 | M47: 0.00450791945 | N47: 0.001763591415 | O47: 0.002960963825 | P47: 0.000926855362 | Q47: 2.296408834e-06 | R47: 0.000106847756 | S47: 0.01026847422
A48: 2004 | B48: 1 | C48: 2 | D48: 22 | E48: 0.004794091369 | F48: 0.002109720607 | G48: 0.00272292511 | H48: 0.002445595479 | I48: 1.562781628e-05 | J48: 0.0002650199336 | K48: 0.01235298031 | M48: 0.004139749449 | N48: 0.001773846746 | O48: 0.002742160312 | P48: 0.0009265981535 | Q48: 2.296408834e-06 | R48: 0.000106847756 | S48: 0.009691498824
A49: 2004 | B49: 1 | C49: 2 | D49: 23 | E49: 0.004756314111 | F49: 0.002039837485 | G49: 0.002551325083 | H49: 0.002453420082 | I49: 1.562781628e-05 | J49: 0.0002650199336 | K49: 0.01208154451 | M49: 0.004107128381 | N49: 0.001715089228 | O49: 0.002569348072 | P49: 0.0009295627741 | Q49: 2.296408834e-06 | R49: 0.000106847756 | S49: 0.009430272619
A50: 2004 | B50: 1 | C50: 2 | D50: 24 | E50: 0.004271428401 | F50: 0.001603551917 | G50: 0.002477813427 | H50: 0.002445850787 | I50: 1.562781628e-05 | J50: 0.0002650199336 | K50: 0.01107929228 | M50: 0.003688424356 | N50: 0.001348261632 | O50: 0.002495317118 | P50: 0.000926694886 | Q50: 2.296408834e-06 | R50: 0.000106847756 | S50: 0.008567842157
A51: 2004 | B51: 1 | C51: 3 | D51: 1 | E51: 0.003951688115 | F51: 0.001475190744 | G51: 0.002559725009 | H51: 0.002454777696 | I51: 1.562781628e-05 | J51: 0.0002650199336 | K51: 0.01072202931 | M51: 0.003412325181 | N51: 0.001240335945 | O51: 0.002577807337 | P51: 0.0009300771531 | Q51: 2.296408834e-06 | R51: 0.000106847756 | S51: 0.00826968978
A52: 2004 | B52: 1 | C52: 3 | D52: 2 | E52: 0.003433393163 | F52: 0.001564520599 | G52: 0.002501705653 | H52: 0.002443922376 | I52: 1.562781628e-05 | J52: 0.0002650199336 | K52: 0.01022418954 | M52: 0.002964771916 | N52: 0.001315444218 | O52: 0.002519378122 | P52: 0.000925964241 | Q52: 2.296408834e-06 | R52: 0.000106847756 | S52: 0.007834702662
A53: 2004 | B53: 1 | C53: 3 | D53: 3 | E53: 0.003381806713 | F53: 0.001520569269 | G53: 0.002481140097 | H53: 0.002439972588 | I53: 1.562781628e-05 | J53: 0.0002650199336 | K53: 0.01010413642 | M53: 0.002920226462 | N53: 0.001278490072 | O53: 0.002498667288 | P53: 0.0009244677277 | Q53: 2.296408834e-06 | R53: 0.000106847756 | S53: 0.007730995714
A54: 2004 | B54: 1 | C54: 3 | D54: 4 | E54: 0.003201827264 | F54: 0.001527574236 | G54: 0.002470570257 | H54: 0.00245180106 | I54: 1.562781628e-05 | J54: 0.0002650199336 | K54: 0.009932420566 | M54: 0.002764812272 | N54: 0.001284379827 | O54: 0.002488022781 | P54: 0.000928949352 | Q54: 2.296408834e-06 | R54: 0.000106847756 | S54: 0.007575308396
A55: 2004 | B55: 1 | C55: 3 | D55: 5 | E55: 0.003341537152 | F55: 0.001511228685 | G55: 0.002521790672 | H55: 0.002449863653 | I55: 1.562781628e-05 | J55: 0.0002650199336 | K55: 0.01010506791 | M55: 0.002885453263 | N55: 0.001270636537 | O55: 0.002539605026 | P55: 0.0009282152983 | Q55: 2.296408834e-06 | R55: 0.000106847756 | S55: 0.007733054289
A56: 2004 | B56: 1 | C56: 3 | D56: 6 | E56: 0.003500267891 | F56: 0.001481664047 | G56: 0.002582889843 | H56: 0.002443087375 | I56: 1.562781628e-05 | J56: 0.0002650199336 | K56: 0.01028855691 | M56: 0.003022518963 | N56: 0.001245778678 | O56: 0.002601135812 | P56: 0.000925647872 | Q56: 2.296408834e-06 | R56: 0.000106847756 | S56: 0.00790422549
A57: 2004 | B57: 1 | C57: 3 | D57: 7 | E57: 0.003631168346 | F57: 0.001520971252 | G57: 0.002848103307 | H57: 0.002447589865 | I57: 1.562781628e-05 | J57: 0.0002650199336 | K57: 0.01072848052 | M57: 0.003135552914 | N57: 0.001278828058 | O57: 0.002868222787 | P57: 0.0009273537957 | Q57: 2.296408834e-06 | R57: 0.000106847756 | S57: 0.008319101719
A58: 2004 | B58: 1 | C58: 3 | D58: 8 | E58: 0.003780607487 | F58: 0.001555200774 | G58: 0.003316360201 | H58: 0.002499745822 | I58: 1.562781628e-05 | J58: 0.0002650199336 | K58: 0.01143256203 | M58: 0.003264595218 | N58: 0.001307608138 | O58: 0.003339787527 | P58: 0.0009471148777 | Q58: 2.296408834e-06 | R58: 0.000106847756 | S58: 0.008968249925
A59: 2004 | B59: 1 | C59: 3 | D59: 9 | E59: 0.004076839326 | F59: 0.001781853656 | G59: 0.003405121954 | H59: 0.002473361754 | I59: 6.516799702e-06 | J59: 0.0001105133176 | K59: 0.01185420681 | M59: 0.003520394597 | N59: 0.001498177199 | O59: 0.003429176309 | P59: 0.0009371183641 | Q59: 9.576025298e-07 | R59: 4.455551639e-05 | S59: 0.009430379588
A60: 2004 | B60: 1 | C60: 3 | D60: 10 | E60: 0.004784829237 | F60: 0.001822691762 | G60: 0.003391108898 | H60: 0.002414901051 | I60: 0 | J60: 0 | K60: 0.01241353095 | M60: 0.004131751498 | N60: 0.001532513756 | O60: 0.003415064262 | P60: 0.0009149685116 | Q60: 0 | R60: 0 | S60: 0.009994298027
A61: 2004 | B61: 1 | C61: 3 | D61: 11 | E61: 0.00503763157 | F61: 0.001923367537 | G61: 0.003353746863 | H61: 0.002386759711 | I61: 0 | J61: 0 | K61: 0.01270150568 | M61: 0.004350049031 | N61: 0.001617161645 | O61: 0.003377438295 | P61: 0.0009043061948 | Q61: 0 | R61: 0 | S61: 0.01024895517
A62: 2004 | B62: 1 | C62: 3 | D62: 12 | E62: 0.00464916164 | F62: 0.001933617058 | G62: 0.003299323169 | H62: 0.00238723724 | I62: 0 | J62: 0 | K62: 0.01226933911 | M62: 0.004014601069 | N62: 0.001625779412 | O62: 0.003322630143 | P62: 0.0009044871231 | Q62: 0 | R62: 0 | S62: 0.009867497747
A63: 2004 | B63: 1 | C63: 3 | D63: 13 | E63: 0.004333635203 | F63: 0.001919485913 | G63: 0.003328602178 | H63: 0.002390145202 | I63: 0 | J63: 0 | K63: 0.0119718685 | M63: 0.003742140598 | N63: 0.001613897987 | O63: 0.003352115984 | P63: 0.0009055889047 | Q63: 0 | R63: 0 | S63: 0.009613743475
A64: 2004 | B64: 1 | C64: 3 | D64: 14 | E64: 0.004312998211 | F64: 0.001836619073 | G64: 0.003266121793 | H64: 0.002458980697 | I64: 0 | J64: 0 | K64: 0.01187471977 | M64: 0.003724320334 | N64: 0.001544223797 | O64: 0.003289194226 | P64: 0.0009316696047 | Q64: 0 | R64: 0 | S64: 0.009489407962
A65: 2004 | B65: 1 | C65: 3 | D65: 15 | E65: 0.004360125152 | F65: 0.001801728898 | G65: 0.003238681999 | H65: 0.002422479844 | I65: 0 | J65: 0 | K65: 0.01182301589 | M65: 0.003765014954 | N65: 0.001514888243 | O65: 0.003261560593 | P65: 0.0009178399984 | Q65: 0 | R65: 0 | S65: 0.009459303789
A66: 2004 | B66: 1 | C66: 3 | D66: 16 | E66: 0.004219712446 | F66: 0.001868399436 | G66: 0.003200169699 | H66: 0.002402904741 | I66: 0 | J66: 0 | K66: 0.01169118632 | M66: 0.003643767072 | N66: 0.001570944631 | O66: 0.003222776236 | P66: 0.0009104232958 | Q66: 0 | R66: 0 | S66: 0.009347911235
A67: 2004 | B67: 1 | C67: 3 | D67: 17 | E67: 0.004568016825 | F67: 0.001909031155 | G67: 0.003137091527 | H67: 0.002397792368 | I67: 5.204063134e-06 | J67: 8.825164319e-05 | K67: =SUM(E67:J67) -> 0.01210538758 | M67: 0.003944531649 | N67: 0.001605107658 | O67: 0.00315925247 | P67: 0.0009084862971 | Q67: 7.647041877e-07 | R67: 3.558030489e-05 | S67: =SUM(M67:R67) -> 0.009653723083
A68: 2004 | B68: 1 | C68: 3 | D68: 18 | E68: 0.005305976951 | F68: 0.001936708902 | G68: 0.003070142962 | H68: 0.002489950623 | I68: 1.562781628e-05 | J68: 0.0002650199336 | K68: 0.01308342719 | M68: =E68*V$5 -> 0.004581768153 | N68: =F68*W$5 -> 0.001628379024 | O68: =G68*X$5 -> 0.003091830968 | P68: =H68*Y$5 -> 0.0009434036288 | Q68: =I68*Z$5 -> 2.296408834e-06 | R68: =J68*AA$5 -> 0.000106847756 | S68: 0.01035452594
A69: 2004 | B69: 1 | C69: 3 | D69: 19 | E69: 0.005435528016 | F69: 0.001807442334 | G69: 0.002968118269 | H69: 0.002523147456 | I69: 1.562781628e-05 | J69: 0.0002650199336 | K69: 0.01301488383 | M69: 0.004693636891 | N69: 0.001519692083 | O69: 0.002989085556 | P69: 0.0009559813937 | Q69: 2.296408834e-06 | R69: 0.000106847756 | S69: 0.01026754009
A70: 2004 | B70: 1 | C70: 3 | D70: 20 | E70: 0.005287151413 | F70: 0.001792675439 | G70: 0.002948274028 | H70: 0.002499229106 | I70: 1.562781628e-05 | J70: 0.0002650199336 | K70: 0.01280797774 | M70: 0.004565512099 | N70: 0.001507276122 | O70: 0.002969101131 | P70: 0.0009469191022 | Q70: 2.296408834e-06 | R70: 0.000106847756 | S70: 0.01009795262
A71: 2004 | B71: 1 | C71: 3 | D71: 21 | E71: 0.005077586931 | F71: 0.001812067061 | G71: 0.002816533176 | H71: 0.002417891879 | I71: 1.562781628e-05 | J71: 0.0002650199336 | K71: 0.0124047268 | M71: 0.004384550915 | N71: 0.001523580539 | O71: 0.002836429641 | P71: 0.0009161016899 | Q71: 2.296408834e-06 | R71: 0.000106847756 | S71: 0.009769806949
A72: 2004 | B72: 1 | C72: 3 | D72: 22 | E72: 0.004673063155 | F72: 0.001850620948 | G72: 0.002588263083 | H72: 0.002342709353 | I72: 1.562781628e-05 | J72: 0.0002650199336 | K72: 0.01173530429 | M72: 0.004035240285 | N72: 0.001555996531 | O72: 0.002606547009 | P72: 0.000887616198 | Q72: 2.296408834e-06 | R72: 0.000106847756 | S72: 0.009194544188
A73: 2004 | B73: 1 | C73: 3 | D73: 23 | E73: 0.004955226439 | F73: 0.001698242923 | G73: 0.002459766922 | H73: 0.002307163458 | I73: 1.562781628e-05 | J73: 0.0002650199336 | K73: 0.01170104749 | M73: 0.004278891315 | N73: 0.001427877546 | O73: 0.002477143129 | P73: 0.0008741484104 | Q73: 2.296408834e-06 | R73: 0.000106847756 | S73: 0.009167204565
A74: 2004 | B74: 1 | C74: 3 | D74: 24 | E74: 0.00476293405 | F74: 0.001642163347 | G74: 0.002437598775 | H74: 0.002307785236 | I74: 1.562781628e-05 | J74: 0.0002650199336 | K74: 0.01143112916 | M74: 0.004112844769 | N74: 0.001380726007 | O74: 0.002454818383 | P74: 0.0008743839923 | Q74: 2.296408834e-06 | R74: 0.000106847756 | S74: 0.008931917315
A75: 2004 | B75: 1 | C75: 4 | D75: 1 | E75: 0.003431643134 | F75: 0.001936830608 | G75: 0.002414408118 | H75: 0.002309488327 | I75: 1.562781628e-05 | J75: 0.0002650199336 | K75: 0.01037301794 | M75: 0.002963260748 | N75: 0.001628481355 | O75: 0.002431463903 | P75: 0.0008750292671 | Q75: 2.296408834e-06 | R75: 0.000106847756 | S75: 0.008007379437
A76: 2004 | B76: 1 | C76: 4 | D76: 2 | E76: 0.003261678448 | F76: 0.001930185975 | G76: 0.002395192055 | H76: 0.002312957587 | I76: 1.562781628e-05 | J76: 0.0002650199336 | K76: 0.01018066181 | M76: 0.002816494413 | N76: 0.001622894567 | O76: 0.002412112095 | P76: 0.0008763437158 | Q76: 2.296408834e-06 | R76: 0.000106847756 | S76: 0.007836988956
A77: 2004 | B77: 1 | C77: 4 | D77: 3 | E77: 0.002966542216 | F77: 0.001969669762 | G77: 0.002394325152 | H77: 0.002309473333 | I77: 1.562781628e-05 | J77: 0.0002650199336 | K77: 0.009920658213 | M77: 0.002561641104 | N77: 0.001656092417 | O77: 0.002411239067 | P77: 0.0008750235859 | Q77: 2.296408834e-06 | R77: 0.000106847756 | S77: 0.007613140339
A78: 2004 | B78: 1 | C78: 4 | D78: 4 | E78: 0.003097582686 | F78: 0.001879117024 | G78: 0.002402418208 | H78: 0.002319628802 | I78: 1.562781628e-05 | J78: 0.0002650199336 | K78: 0.00997939447 | M78: 0.002674795958 | N78: 0.001579955947 | O78: 0.002419389294 | P78: 0.0008788713358 | Q78: 2.296408834e-06 | R78: 0.000106847756 | S78: 0.007662156699
A79: 2004 | B79: 1 | C79: 4 | D79: 5 | E79: 0.002980739158 | F79: 0.001860773083 | G79: 0.00244654512 | H79: 0.002292045962 | I79: 1.562781628e-05 | J79: 0.0002650199336 | K79: 0.009860751073 | M79: 0.002573900316 | N79: 0.001564532416 | O79: 0.002463827926 | P79: 0.0008684206259 | Q79: 2.296408834e-06 | R79: 0.000106847756 | S79: 0.007579825448
A80: 2004 | B80: 1 | C80: 4 | D80: 6 | E80: 0.003142762387 | F80: 0.001800924857 | G80: 0.002499761119 | H80: 0.002249231366 | I80: 1.562781628e-05 | J80: 0.0002650199336 | K80: 0.00997332748 | M80: 0.002713809116 | N80: 0.001514212208 | O80: 0.002517419852 | P80: 0.0008521988403 | Q80: 2.296408834e-06 | R80: 0.000106847756 | S80: 0.007706784181
A81: 2004 | B81: 1 | C81: 4 | D81: 7 | E81: 0.003265554004 | F81: 0.001727902957 | G81: 0.002667297692 | H81: 0.002284101102 | I81: 1.562781628e-05 | J81: 0.0002650199336 | K81: 0.0102255035 | M81: 0.002819840997 | N81: 0.001452815613 | O81: 0.002686139932 | P81: 0.0008654104416 | Q81: 2.296408834e-06 | R81: 0.000106847756 | S81: 0.007933351149
A82: 2004 | B82: 1 | C82: 4 | D82: 8 | E82: 0.003616196409 | F82: 0.001649428376 | G82: 0.00289830425 | H82: 0.00230581154 | I82: 1.562781628e-05 | J82: 0.0002650199336 | K82: 0.01075038832 | M82: 0.003122624484 | N82: 0.001386834421 | O82: 0.002918778359 | P82: 0.0008736361898 | Q82: 2.296408834e-06 | R82: 0.000106847756 | S82: 0.008411017619
A83: 2004 | B83: 1 | C83: 4 | D83: 9 | E83: 0.003734043361 | F83: 0.001690676958 | G83: 0.003106111209 | H83: 0.00234491246 | I83: 6.516799702e-06 | J83: 0.0001105133176 | K83: 0.01099277411 | M83: 0.003224386595 | N83: 0.001421516105 | O83: 0.003128053302 | P83: 0.0008884509211 | Q83: 9.576025298e-07 | R83: 4.455551639e-05 | S83: 0.008707920042
A84: 2004 | B84: 1 | C84: 4 | D84: 10 | E84: 0.004021393459 | F84: 0.001624027049 | G84: 0.003203272347 | H84: 0.00229405424 | I84: 0 | J84: 0 | K84: 0.0111427471 | M84: 0.003472516495 | N84: 0.001365477062 | O84: 0.003225900802 | P84: 0.0008691815313 | Q84: 0 | R84: 0 | S84: 0.00893307589
A85: 2004 | B85: 1 | C85: 4 | D85: 11 | E85: 0.003991780313 | F85: 0.001706273455 | G85: 0.003205490865 | H85: 0.002299719215 | I85: 0 | J85: 0 | K85: 0.01120326385 | M85: 0.003446945225 | N85: 0.001434629593 | O85: 0.003228134992 | P85: 0.0008713279024 | Q85: 0 | R85: 0 | S85: 0.008981037712
A86: 2004 | B86: 1 | C86: 4 | D86: 12 | E86: 0.003687071577 | F86: 0.001817312718 | G86: 0.003158825703 | H86: 0.002321372575 | I86: 0 | J86: 0 | K86: 0.01098458257 | M86: 0.003183825954 | N86: 0.001527991072 | O86: 0.003181140179 | P86: 0.000879532024 | Q86: 0 | R86: 0 | S86: 0.008772489229
A87: 2004 | B87: 1 | C87: 4 | D87: 13 | E87: 0.003731602102 | F87: 0.001775113949 | G87: 0.003163305676 | H87: 0.002368467039 | I87: 0 | J87: 0 | K87: 0.01103848877 | M87: 0.003222278541 | N87: 0.001492510473 | O87: 0.0031856518 | P87: 0.0008973753854 | Q87: 0 | R87: 0 | S87: 0.0087978162
A88: 2004 | B88: 1 | C88: 4 | D88: 14 | E88: 0.003350334209 | F88: 0.001779171519 | G88: 0.00313891991 | H88: 0.002742579211 | I88: 0 | J88: 0 | K88: 0.01101100485 | M88: 0.002893049616 | N88: 0.001495922066 | O88: 0.003161093768 | P88: 0.001039120678 | Q88: 0 | R88: 0 | S88: 0.008589186129
A89: 2004 | B89: 1 | C89: 4 | D89: 15 | E89: 0.003206462615 | F89: 0.00176871025 | G89: 0.003168607528 | H89: 0.002751190833 | I89: 0 | J89: 0 | K89: 0.01089497123 | M89: 0.002768814947 | N89: 0.001487126263 | O89: 0.003190991104 | P89: 0.001042383488 | Q89: 0 | R89: 0 | S89: 0.008489315803
A90: 2004 | B90: 1 | C90: 4 | D90: 16 | E90: 0.003575486319 | F90: 0.001652858762 | G90: 0.00312734468 | H90: 0.002845693254 | I90: 0 | J90: 0 | K90: 0.01120138301 | M90: 0.003087470884 | N90: 0.00138971868 | O90: 0.003149436769 | P90: 0.001078188988 | Q90: 0 | R90: 0 | S90: 0.008704815321
A91: 2004 | B91: 1 | C91: 4 | D91: 17 | E91: 0.004310636566 | F91: 0.00170389235 | G91: 0.003083525502 | H91: 0.002901051266 | I91: 3.90695407e-06 | J91: 6.62549834e-05 | K91: 0.01206926762 | M91: 0.003722281028 | N91: 0.001432627567 | O91: 0.003105308045 | P91: 0.001099163279 | Q91: 5.741022085e-07 | R91: 2.6711939e-05 | S91: 0.00938666596
A92: 2004 | B92: 1 | C92: 4 | D92: 18 | E92: 0.004551097579 | F92: 0.001714667228 | G92: 0.003020141781 | H92: 0.002969502298 | I92: 1.562781628e-05 | J92: 0.0002650199336 | K92: 0.01253605664 | M92: 0.003929921698 | N92: 0.001441687053 | O92: 0.003041476571 | P92: 0.001125098312 | Q92: 2.296408834e-06 | R92: 0.000106847756 | S92: 0.009647327799
A93: 2004 | B93: 1 | C93: 4 | D93: 19 | E93: 0.005010327685 | F93: 0.001698271054 | G93: 0.002879885887 | H93: 0.003002641551 | I93: 1.562781628e-05 | J93: 0.0002650199336 | K93: 0.01287177393 | M93: 0.004326471833 | N93: 0.001427901198 | O93: 0.002900229885 | P93: 0.001137654261 | Q93: 2.296408834e-06 | R93: 0.000106847756 | S93: 0.009901401342
A94: 2004 | B94: 1 | C94: 4 | D94: 20 | E94: 0.00476224762 | F94: 0.001751631823 | G94: 0.002826207081 | H94: 0.003147226466 | I94: 1.562781628e-05 | J94: 0.0002650199336 | K94: 0.01276796074 | M94: 0.004112252029 | N94: 0.001472766773 | O94: 0.002846171884 | P94: 0.00119243524 | Q94: 2.296408834e-06 | R94: 0.000106847756 | S94: 0.009732770091
A95: 2004 | B95: 1 | C95: 4 | D95: 21 | E95: 0.004586940698 | F95: 0.001868252972 | G95: 0.002674931961 | H95: 0.003317966429 | I95: 1.562781628e-05 | J95: 0.0002650199336 | K95: 0.01272873981 | M95: 0.003960872617 | N95: 0.001570821484 | O95: 0.002693828131 | P95: 0.001257125961 | Q95: 2.296408834e-06 | R95: 0.000106847756 | S95: 0.009591792358
A96: 2004 | B96: 1 | C96: 4 | D96: 22 | E96: 0.004758640908 | F96: 0.001672389916 | G96: 0.002537018083 | H96: 0.003611544781 | I96: 1.562781628e-05 | J96: 0.0002650199336 | K96: 0.01286024144 | M96: 0.004109137594 | N96: 0.001406140416 | O96: 0.002554940006 | P96: 0.00136835824 | Q96: 2.296408834e-06 | R96: 0.000106847756 | S96: 0.009547720421
A97: 2004 | B97: 1 | C97: 4 | D97: 23 | E97: 0.004498293191 | F97: 0.001664008635 | G97: 0.002514977338 | H97: 0.004025260195 | I97: 1.562781628e-05 | J97: 0.0002650199336 | K97: 0.01298318711 | M97: 0.003884324542 | N97: 0.001399093459 | O97: 0.002532743561 | P97: 0.001525108587 | Q97: 2.296408834e-06 | R97: 0.000106847756 | S97: 0.009450414314
A98: 2004 | B98: 1 | C98: 4 | D98: 24 | E98: 0.003899781407 | F98: 0.001818715073 | G98: 0.002505542768 | H98: 0.005303550171 | I98: 1.562781628e-05 | J98: 0.0002650199336 | K98: 0.01380823717 | M98: 0.00336750318 | N98: 0.001529170168 | O98: 0.002523242344 | P98: 0.00200943281 | Q98: 2.296408834e-06 | R98: 0.000106847756 | S98: 0.009538492667
A99: 2004 | B99: 1 | C99: 5 | D99: 1 | E99: 0.003817276788 | F99: 0.001871093475 | G99: 0.002488991524 | H99: 0.005398086974 | I99: 1.562781628e-05 | J99: 0.0002650199336 | K99: 0.01385609651 | M99: 0.003296259554 | N99: 0.001573209771 | O99: 0.002506574178 | P99: 0.002045251337 | Q99: 2.296408834e-06 | R99: 0.000106847756 | S99: 0.009530439005
A100: 2004 | B100: 1 | C100: 5 | D100: 2 | E100: 0.003588094615 | F100: 0.001948369055 | G100: 0.002471623467 | H100: 0.004887558964 | I100: 1.562781628e-05 | J100: 0.0002650199336 | K100: 0.01317629385 | M100: 0.003098358283 | N100: 0.001638182846 | O100: 0.002489083431 | P100: 0.001851820201 | Q100: 2.296408834e-06 | R100: 0.000106847756 | S100: 0.009186588926
A101: 2004 | B101: 1 | C101: 5 | D101: 3 | E101: 0.003258661687 | F101: 0.002004315805 | G101: 0.002475966466 | H101: 0.005674425794 | I101: 1.562781628e-05 | J101: 0.0002650199336 | K101: 0.0136940175 | M101: 0.002813889407 | N101: 0.001685222706 | O101: 0.00249345711 | P101: 0.002149951825 | Q101: 2.296408834e-06 | R101: 0.000106847756 | S101: 0.009251665213
A102: 2004 | B102: 1 | C102: 5 | D102: 4 | E102: 0.003381667592 | F102: 0.001945264965 | G102: 0.002492342785 | H102: 0.00553421931 | I102: 1.562781628e-05 | J102: 0.0002650199336 | K102: 0.0136341424 | M102: 0.002920106329 | N102: 0.001635572937 | O102: 0.002509949114 | P102: 0.002096829765 | Q102: 2.296408834e-06 | R102: 0.000106847756 | S102: 0.00927160231
A103: 2004 | B103: 1 | C103: 5 | D103: 5 | E103: 0.003468535266 | F103: 0.00197881937 | G103: 0.002583616831 | H103: 0.006272964644 | I103: 1.562781628e-05 | J103: 0.0002650199336 | K103: 0.01458458386 | M103: 0.0029951175 | N103: 0.00166378538 | O103: 0.002601867935 | P103: 0.002376728902 | Q103: 2.296408834e-06 | R103: 0.000106847756 | S103: 0.009746643881
A104: 2004 | B104: 1 | C104: 5 | D104: 6 | E104: 0.003676362721 | F104: 0.001966571663 | G104: 0.002683759811 | H104: 0.005869490766 | I104: 1.562781628e-05 | J104: 0.0002650199336 | K104: 0.01447683271 | M104: 0.003174578742 | N104: 0.001653487545 | O104: 0.002702718342 | P104: 0.002223858914 | Q104: 2.296408834e-06 | R104: 0.000106847756 | S104: 0.009863787708
A105: 2004 | B105: 1 | C105: 5 | D105: 7 | E105: 0.004158376235 | F105: 0.001906566904 | G105: 0.003032562851 | H105: 0.006536187657 | I105: 1.562781628e-05 | J105: 0.0002650199336 | K105: 0.0159143414 | M105: 0.003590802595 | N105: 0.001603035723 | O105: 0.003053985385 | P105: 0.002476460014 | Q105: 2.296408834e-06 | R105: 0.000106847756 | S105: 0.01083342788
A106: 2004 | B106: 1 | C106: 5 | D106: 8 | E106: 0.00434193138 | F106: 0.00200414192 | G106: 0.003813874532 | H106: 0.006203177983 | I106: 1.562781628e-05 | J106: 0.0002650199336 | K106: 0.01664377357 | M106: 0.003749304436 | N106: 0.001685076504 | O106: 0.003840816383 | P106: 0.002350287819 | Q106: 2.296408834e-06 | R106: 0.000106847756 | S106: 0.01173462931
A107: 2004 | B107: 1 | C107: 5 | D107: 9 | E107: 0.004838322093 | F107: 0.002054550419 | G107: 0.004077019796 | H107: 0.007380466042 | I107: 6.516799702e-06 | J107: 0.0001105133176 | K107: 0.01846738847 | M107: 0.004177943154 | N107: 0.001727459818 | O107: 0.00410582055 | P107: 0.002796343985 | Q107: 9.576025298e-07 | R107: 4.455551639e-05 | S107: 0.01285308063
A108: 2004 | B108: 1 | C108: 5 | D108: 10 | E108: 0.004640572454 | F108: 0.002172935176 | G108: 0.004109668041 | H108: 0.007293779237 | I108: 0 | J108: 0 | K108: 0.01821695491 | M108: 0.004007184215 | N108: 0.001826997366 | O108: 0.004138699428 | P108: 0.002763499701 | Q108: 0 | R108: 0 | S108: 0.01273638071
A109: 2004 | B109: 1 | C109: 5 | D109: 11 | E109: 0.004622281922 | F109: 0.002114550355 | G109: 0.004124675904 | H109: 0.007587607703 | I109: 0 | J109: 0 | K109: 0.01844911588 | M109: 0.003991390144 | N109: 0.001777907584 | O109: 0.004153813308 | P109: 0.002874826744 | Q109: 0 | R109: 0 | S109: 0.01279793778
A110: 2004 | B110: 1 | C110: 5 | D110: 12 | E110: 0.004404622369 | F110: 0.002117252148 | G110: 0.004088059452 | H110: 0.008173644509 | I110: 0 | J110: 0 | K110: 0.01878357848 | M110: 0.003803438779 | N110: 0.001780179244 | O110: 0.004116938192 | P110: 0.00309686699 | Q110: 0 | R110: 0 | S110: 0.01279742321
A111: 2004 | B111: 1 | C111: 5 | D111: 13 | E111: 0.003896804847 | F111: 0.002116939831 | G111: 0.0040004345 | H111: 0.00742416632 | I111: 0 | J111: 0 | K111: 0.0174383455 | M111: 0.003364932889 | N111: 0.001779916648 | O111: 0.004028694243 | P111: 0.002812901342 | Q111: 0 | R111: 0 | S111: 0.01198644512
A112: 2004 | B112: 1 | C112: 5 | D112: 14 | E112: 0.003833035702 | F112: 0.002169515967 | G112: 0.004060267409 | H112: 0.008341204703 | I112: 0 | J112: 0 | K112: 0.01840402378 | M112: 0.003309867546 | N112: 0.001824122506 | O112: 0.004088949821 | P112: 0.003160352946 | Q112: 0 | R112: 0 | S112: 0.01238329282
A113: 2004 | B113: 1 | C113: 5 | D113: 15 | E113: 0.00378695293 | F113: 0.002148098561 | G113: 0.003980881953 | H113: 0.008023464376 | I113: 0 | J113: 0 | K113: 0.01793939782 | M113: 0.003270074576 | N113: 0.001806114815 | O113: 0.004009003573 | P113: 0.00303996607 | Q113: 0 | R113: 0 | S113: 0.01212515903
A114: 2004 | B114: 1 | C114: 5 | D114: 16 | E114: 0.004355193156 | F114: 0.002106495224 | G114: 0.003831947115 | H114: 0.008285848586 | I114: 0 | J114: 0 | K114: 0.01857948408 | M114: 0.003760756122 | N114: 0.001771134854 | O114: 0.003859016634 | P114: 0.003139379373 | Q114: 0 | R114: 0 | S114: 0.01253028698
A115: 2004 | B115: 1 | C115: 5 | D115: 17 | E115: 0.004867205404 | F115: 0.0022212928 | G115: 0.003651979873 | H115: 0.007068525351 | I115: 3.90695407e-06 | J115: 6.62549834e-05 | K115: 0.01787916537 | M115: 0.004202884205 | N115: 0.001867656311 | O115: 0.003677778073 | P115: 0.002678154501 | Q115: 5.741022085e-07 | R115: 2.6711939e-05 | S115: 0.01245375913
A116: 2004 | B116: 1 | C116: 5 | D116: 18 | E116: 0.005001882519 | F116: 0.002178138828 | G116: 0.003457219181 | H116: 0.006854097086 | I116: 1.562781628e-05 | J116: 0.0002650199336 | K116: 0.01777198536 | M116: 0.004319179341 | N116: 0.001831372581 | O116: 0.003481641559 | P116: 0.002596910961 | Q116: 2.296408834e-06 | R116: 0.000106847756 | S116: 0.01233824861
A117: 2004 | B117: 1 | C117: 5 | D117: 19 | E117: 0.005539756187 | F117: 0.002019793722 | G117: 0.00338086094 | H117: 0.006669970601 | I117: 1.562781628e-05 | J117: 0.0002650199336 | K117: 0.0178910292 | M117: 0.004783639037 | N117: 0.001698236491 | O117: 0.00340474391 | P117: 0.002527148294 | Q117: 2.296408834e-06 | R117: 0.000106847756 | S117: 0.0125229119
A118: 2004 | B118: 1 | C118: 5 | D118: 20 | E118: 0.005371630143 | F118: 0.002106114376 | G118: 0.003355865973 | H118: 0.008505001752 | I118: 1.562781628e-05 | J118: 0.0002650199336 | K118: 0.01961925999 | M118: 0.004638460391 | N118: 0.001770814638 | O118: 0.003379572374 | P118: 0.003222413105 | Q118: 2.296408834e-06 | R118: 0.000106847756 | S118: 0.01312040467
A119: 2004 | B119: 1 | C119: 5 | D119: 21 | E119: 0.005330846699 | F119: 0.002072284698 | G119: 0.003303555421 | H119: 0.00843309816 | I119: 1.562781628e-05 | J119: 0.0002650199336 | K119: 0.01942043273 | M119: 0.004603243448 | N119: 0.001742370746 | O119: 0.003326892292 | P119: 0.00319516995 | Q119: 2.296408834e-06 | R119: 0.000106847756 | S119: 0.0129768206
A120: 2004 | B120: 1 | C120: 5 | D120: 22 | E120: 0.005001289964 | F120: 0.001999067688 | G120: 0.003010097756 | H120: 0.008054254277 | I120: 1.562781628e-05 | J120: 0.0002650199336 | K120: 0.01834535744 | M120: 0.004318667663 | N120: 0.001680810105 | O120: 0.003031361593 | P120: 0.003051631885 | Q120: 2.296408834e-06 | R120: 0.000106847756 | S120: 0.01219161541
A121: 2004 | B121: 1 | C121: 5 | D121: 23 | E121: 0.004735122932 | F121: 0.001936097409 | G121: 0.002819057653 | H121: 0.008211096308 | I121: 1.562781628e-05 | J121: 0.0002650199336 | K121: 0.01798202205 | M121: 0.004088829569 | N121: 0.001627864883 | O121: 0.002838971951 | P121: 0.003111056895 | Q121: 2.296408834e-06 | R121: 0.000106847756 | S121: 0.01177586746
A122: 2004 | B122: 1 | C122: 5 | D122: 24 | E122: 0.004339007661 | F122: 0.001948235163 | G122: 0.00268605831 | H122: 0.007867415452 | I122: 1.562781628e-05 | J122: 0.0002650199336 | K122: 0.01712136434 | M122: 0.003746779773 | N122: 0.00163807027 | O122: 0.002705033078 | P122: 0.002980841555 | Q122: 2.296408834e-06 | R122: 0.000106847756 | S122: 0.01117986884
A123: 2004 | B123: 1 | C123: 6 | D123: 1 | E123: 0.004167695015 | F123: 0.001800755433 | G123: 0.002657271404 | H123: 0.008136625236 | I123: 1.562781628e-05 | J123: 0.0002650199336 | K123: 0.01704299484 | M123: 0.003598849462 | N123: 0.001514069757 | O123: 0.002676042816 | P123: 0.003082840963 | Q123: 2.296408834e-06 | R123: 0.000106847756 | S123: 0.01098094716
A124: 2004 | B124: 1 | C124: 6 | D124: 2 | E124: 0.003773565168 | F124: 0.001790031779 | G124: 0.002626158902 | H124: 0.007993283375 | I124: 1.562781628e-05 | J124: 0.0002650199336 | K124: 0.01646368697 | M124: 0.0032585141 | N124: 0.00150505334 | O124: 0.00264471053 | P124: 0.003028530957 | Q124: 2.296408834e-06 | R124: 0.000106847756 | S124: 0.01054595309
A125: 2004 | B125: 1 | C125: 6 | D125: 3 | E125: 0.003764856113 | F125: 0.001829401751 | G125: 0.002601493068 | H125: 0.008429288118 | I125: 1.562781628e-05 | J125: 0.0002650199336 | K125: 0.0169056868 | M125: 0.003250993738 | N125: 0.001538155495 | O125: 0.002619870453 | P125: 0.003193726384 | Q125: 2.296408834e-06 | R125: 0.000106847756 | S125: 0.01071189023
A126: 2004 | B126: 1 | C126: 6 | D126: 4 | E126: 0.003912875722 | F126: 0.001718751022 | G126: 0.00258246412 | H126: 0.008033579165 | I126: 1.562781628e-05 | J126: 0.0002650199336 | K126: 0.01652831778 | M126: 0.003378810262 | N126: 0.001445120694 | O126: 0.002600707081 | P126: 0.003043798406 | Q126: 2.296408834e-06 | R126: 0.000106847756 | S126: 0.01057758061
A127: 2004 | B127: 1 | C127: 6 | D127: 5 | E127: 0.004002146041 | F127: 0.001865450633 | G127: 0.002586185565 | H127: 0.006900787801 | I127: 1.562781628e-05 | J127: 0.0002650199336 | K127: 0.01563521779 | M127: 0.003455896142 | N127: 0.001568465287 | O127: 0.002604454815 | P127: 0.002614601347 | Q127: 2.296408834e-06 | R127: 0.000106847756 | S127: 0.01035256176
A128: 2004 | B128: 1 | C128: 6 | D128: 6 | E128: 0.004259328858 | F128: 0.001721223772 | G128: 0.002657266978 | H128: 0.006876667019 | I128: 1.562781628e-05 | J128: 0.0002650199336 | K128: 0.01579513438 | M128: 0.00367797627 | N128: 0.001447199775 | O128: 0.002676038359 | P128: 0.002605462358 | Q128: 2.296408834e-06 | R128: 0.000106847756 | S128: 0.01051582093
A129: 2004 | B129: 1 | C129: 6 | D129: 7 | E129: 0.004886268224 | F129: 0.001722425041 | G129: 0.003036457299 | H129: 0.006464371013 | I129: 1.562781628e-05 | J129: 0.0002650199336 | K129: 0.01639016933 | M129: 0.004219345154 | N129: 0.001448209798 | O129: 0.003057907344 | P129: 0.002449249803 | Q129: 2.296408834e-06 | R129: 0.000106847756 | S129: 0.01128385626
A130: 2004 | B130: 1 | C130: 6 | D130: 8 | E130: 0.00474626636 | F130: 0.001904469299 | G130: 0.003802181324 | H130: 0.006875130663 | I130: 1.562781628e-05 | J130: 0.0002650199336 | K130: 0.0176086954 | M130: 0.00409845204 | N130: 0.001601272063 | O130: 0.003829040573 | P130: 0.002604880256 | Q130: 2.296408834e-06 | R130: 0.000106847756 | S130: 0.0122427891
A131: 2004 | B131: 1 | C131: 6 | D131: 9 | E131: 0.004905548983 | F131: 0.002055455487 | G131: 0.00412057253 | H131: 0.008678833102 | I131: 6.516799702e-06 | J131: 0.0001105133176 | K131: =SUM(E131:J131) -> 0.01987744022 | M131: 0.004235994297 | N131: 0.001728220797 | O131: 0.004149680947 | P131: 0.003288275104 | Q131: 9.576025298e-07 | R131: 4.455551639e-05 | S131: =SUM(M131:R131) -> 0.01344768426
A132: 2004 | B132: 1 | C132: 6 | D132: 10 | E132: 0.004821200733 | F132: 0.002067367679 | G132: 0.004118262492 | H132: 0.008593616467 | I132: 0 | J132: 0 | K132: 0.01960044737 | M132: =E132*V$5 -> 0.004163158676 | N132: =F132*W$5 -> 0.001738236532 | O132: =G132*X$5 -> 0.004147354591 | P132: =H132*Y$5 -> 0.003255987844 | Q132: =I132*Z$5 -> 0 | R132: =J132*AA$5 -> 0 | S132: 0.01330473764
A133: 2004 | B133: 1 | C133: 6 | D133: 11 | E133: 0.004503007164 | F133: 0.00208500496 | G133: 0.004138205079 | H133: 0.008181642137 | I133: 0 | J133: 0 | K133: 0.01890785934 | M133: 0.003888395108 | N133: 0.001753065905 | O133: 0.004167438056 | P133: 0.003099897167 | Q133: 0 | R133: 0 | S133: 0.01290879624
A134: 2004 | B134: 1 | C134: 6 | D134: 12 | E134: 0.004186287663 | F134: 0.002155272224 | G134: 0.004058095747 | H134: 0.008180950281 | I134: 0 | J134: 0 | K134: 0.01858060592 | M134: 0.003614904413 | N134: 0.001812146409 | O134: 0.004086762818 | P134: 0.003099635034 | Q134: 0 | R134: 0 | S134: 0.01261344867
A135: 2004 | B135: 1 | C135: 6 | D135: 13 | E135: 0.004041965138 | F135: 0.002027174103 | G135: 0.003945702956 | H135: 0.007404816717 | I135: 0 | J135: 0 | K135: 0.01741965891 | M135: 0.00349028036 | N135: 0.001704441893 | O135: 0.003973576066 | P135: 0.002805570078 | Q135: 0 | R135: 0 | S135: 0.0119738684
A136: 2004 | B136: 1 | C136: 6 | D136: 14 | E136: 0.003995267769 | F136: 0.00209336522 | G136: 0.004031258486 | H136: 0.007702750412 | I136: 0 | J136: 0 | K136: 0.01782264189 | M136: 0.00344995668 | N136: 0.001760095186 | O136: 0.004059735974 | P136: 0.002918452529 | Q136: 0 | R136: 0 | S136: 0.01218824037
A137: 2004 | B137: 1 | C137: 6 | D137: 15 | E137: 0.003754297369 | F137: 0.002074399976 | G137: 0.003938079682 | H137: 0.007841361375 | I137: 0 | J137: 0 | K137: 0.0176081384 | M137: 0.003241876149 | N137: 0.001744149266 | O137: 0.003965898939 | P137: 0.00297097007 | Q137: 0 | R137: 0 | S137: 0.01192289442
A138: 2004 | B138: 1 | C138: 6 | D138: 16 | E138: 0.004005973865 | F138: 0.002113867752 | G138: 0.003818237118 | H138: 0.00845427058 | I138: 0 | J138: 0 | K138: 0.01839234932 | M138: 0.003459201509 | N138: 0.001777333653 | O138: 0.003845209788 | P138: 0.003203191851 | Q138: 0 | R138: 0 | S138: 0.0122849368
A139: 2004 | B139: 1 | C139: 6 | D139: 17 | E139: 0.004713652901 | F139: 0.002237586363 | G139: 0.003635519213 | H139: 0.007032378661 | I139: 3.90695407e-06 | J139: 6.62549834e-05 | K139: 0.01768929908 | M139: 0.004070289967 | N139: 0.001881355889 | O139: 0.003661201133 | P139: 0.002664459081 | Q139: 5.741022085e-07 | R139: 2.6711939e-05 | S139: 0.01230459211
A140: 2004 | B140: 1 | C140: 6 | D140: 18 | E140: 0.005225859512 | F140: 0.002162711034 | G140: 0.003432219962 | H140: 0.006635390667 | I140: 1.562781628e-05 | J140: 0.0002650199336 | K140: 0.01773682892 | M140: 0.004512585883 | N140: 0.001818400938 | O140: 0.003456465742 | P140: 0.002514046494 | Q140: 2.296408834e-06 | R140: 0.000106847756 | S140: 0.01241064322
A141: 2004 | B141: 1 | C141: 6 | D141: 19 | E141: 0.00529259331 | F141: 0.002132052691 | G141: 0.003385536655 | H141: 0.006612802841 | I141: 1.562781628e-05 | J141: 0.0002650199336 | K141: 0.01770363325 | M141: 0.004570211235 | N141: 0.001792623495 | O141: 0.003409452656 | P141: 0.002505488318 | Q141: 2.296408834e-06 | R141: 0.000106847756 | S141: 0.01238691987
A142: 2004 | B142: 1 | C142: 6 | D142: 20 | E142: 0.006061186335 | F142: 0.001952203463 | G142: 0.00335362694 | H142: 0.008340295731 | I142: 1.562781628e-05 | J142: 0.0002650199336 | K142: 0.01998796022 | M142: 0.005233899577 | N142: 0.001641406805 | O142: 0.003377317525 | P142: 0.003160008551 | Q142: 2.296408834e-06 | R142: 0.000106847756 | S142: 0.01352177662
A143: 2004 | B143: 1 | C143: 6 | D143: 21 | E143: 0.005321923212 | F143: 0.002000689254 | G143: 0.003261630073 | H143: 0.008664553215 | I143: 1.562781628e-05 | J143: 0.0002650199336 | K143: 0.0195294435 | M143: 0.004595537921 | N143: 0.001682173512 | O143: 0.003284670776 | P143: 0.003282864677 | Q143: 2.296408834e-06 | R143: 0.000106847756 | S143: 0.01295439105
A144: 2004 | B144: 1 | C144: 6 | D144: 22 | E144: 0.005567267258 | F144: 0.001900926103 | G144: 0.002949472826 | H144: 0.008404111809 | I144: 1.562781628e-05 | J144: 0.0002650199336 | K144: 0.01910242575 | M144: 0.004807395143 | N144: 0.001598292955 | O144: 0.002970308399 | P144: 0.003184187472 | Q144: 2.296408834e-06 | R144: 0.000106847756 | S144: 0.01266932813
A145: 2004 | B145: 1 | C145: 6 | D145: 23 | E145: 0.005351592621 | F145: 0.001788551965 | G145: 0.002816457908 | H145: 0.008475720214 | I145: 1.562781628e-05 | J145: 0.0002650199336 | K145: 0.01871297046 | M145: 0.004621157775 | N145: 0.001503809117 | O145: 0.00283635384 | P145: 0.003211318785 | Q145: 2.296408834e-06 | R145: 0.000106847756 | S145: 0.01228178368
A146: 2004 | B146: 1 | C146: 6 | D146: 24 | E146: 0.004941729043 | F146: 0.001808068433 | G146: 0.002718619783 | H146: 0.007584495083 | I146: 1.562781628e-05 | J146: 0.0002650199336 | K146: 0.01733356009 | M146: 0.004267236168 | N146: 0.001520218505 | O146: 0.002737824571 | P146: 0.002873647421 | Q146: 2.296408834e-06 | R146: 0.000106847756 | S146: 0.01150807083
A147: 2004 | B147: 1 | C147: 7 | D147: 1 | E147: 0.004205982485 | F147: 0.001800755433 | G147: 0.002661204979 | H147: 0.00789931806 | I147: 1.562781628e-05 | J147: 0.0002650199336 | K147: 0.01684790871 | M147: 0.003631911103 | N147: 0.001514069757 | O147: 0.002680004179 | P147: 0.002992928958 | Q147: 2.296408834e-06 | R147: 0.000106847756 | S147: 0.01092805816
A148: 2004 | B148: 1 | C148: 7 | D148: 2 | E148: 0.003807982428 | F148: 0.001790031779 | G148: 0.002634021002 | H148: 0.007645981507 | I148: 1.562781628e-05 | J148: 0.0002650199336 | K148: 0.01615866447 | M148: 0.003288233774 | N148: 0.00150505334 | O148: 0.00265262817 | P148: 0.002896943672 | Q148: 2.296408834e-06 | R148: 0.000106847756 | S148: 0.01045200312
A149: 2004 | B149: 1 | C149: 7 | D149: 3 | E149: 0.003801718641 | F149: 0.001829401751 | G149: 0.002610277248 | H149: 0.007842106308 | I149: 1.562781628e-05 | J149: 0.0002650199336 | K149: 0.0163641517 | M149: 0.003282824927 | N149: 0.001538155495 | O149: 0.002628716686 | P149: 0.002971252314 | Q149: 2.296408834e-06 | R149: 0.000106847756 | S149: 0.01053009359
A150: 2004 | B150: 1 | C150: 7 | D150: 4 | E150: 0.003951689326 | F150: 0.001718751022 | G150: 0.002588817273 | H150: 0.007397914385 | I150: 1.562781628e-05 | J150: 0.0002650199336 | K150: 0.01593781975 | M150: 0.003412326226 | N150: 0.001445120694 | O150: 0.002607105114 | P150: 0.002802954891 | Q150: 2.296408834e-06 | R150: 0.000106847756 | S150: 0.01037665109
A151: 2004 | B151: 1 | C151: 7 | D151: 5 | E151: 0.00404214194 | F151: 0.001865450633 | G151: 0.002594965967 | H151: 0.00630320451 | I151: 1.562781628e-05 | J151: 0.0002650199336 | K151: 0.0150864108 | M151: 0.003490433031 | N151: 0.001568465287 | O151: 0.002613297244 | P151: 0.002388186318 | Q151: 2.296408834e-06 | R151: 0.000106847756 | S151: 0.01016952604
A152: 2004 | B152: 1 | C152: 7 | D152: 6 | E152: 0.004302781006 | F152: 0.001721223772 | G152: 0.002664277659 | H152: 0.006193280901 | I152: 1.562781628e-05 | J152: 0.0002650199336 | K152: 0.01516221109 | M152: 0.003715497667 | N152: 0.001447199775 | O152: 0.002683098565 | P152: 0.002346537969 | Q152: 2.296408834e-06 | R152: 0.000106847756 | S152: 0.01030147814
A153: 2004 | B153: 1 | C153: 7 | D153: 7 | E153: 0.004938924231 | F153: 0.001722425041 | G153: 0.003049097804 | H153: 0.006656702651 | I153: 1.562781628e-05 | J153: 0.0002650199336 | K153: 0.01664779748 | M153: 0.004264814183 | N153: 0.001448209798 | O153: 0.003070637144 | P153: 0.002522121274 | Q153: 2.296408834e-06 | R153: 0.000106847756 | S153: 0.01141492656
A154: 2004 | B154: 1 | C154: 7 | D154: 8 | E154: 0.004795051112 | F154: 0.001904469299 | G154: 0.003812130611 | H154: 0.007210976606 | I154: 1.562781628e-05 | J154: 0.0002650199336 | K154: 0.01800327538 | M154: 0.004140578197 | N154: 0.001601272063 | O154: 0.003839060143 | P154: 0.002732127069 | Q154: 2.296408834e-06 | R154: 0.000106847756 | S154: 0.01242218164
A155: 2004 | B155: 1 | C155: 7 | D155: 9 | E155: 0.004952698729 | F155: 0.002055455487 | G155: 0.004131768021 | H155: 0.009018656435 | I155: 6.516799702e-06 | J155: 0.0001105133176 | K155: 0.02027560879 | M155: 0.00427670861 | N155: 0.001728220797 | O155: 0.004160955526 | P155: 0.003417028888 | Q155: 9.576025298e-07 | R155: 4.455551639e-05 | S155: 0.01362842694
A156: 2004 | B156: 1 | C156: 7 | D156: 10 | E156: 0.004863249643 | F156: 0.002067367679 | G156: 0.004117594839 | H156: 0.008781041574 | I156: 0 | J156: 0 | K156: 0.01982925373 | M156: 0.004199468362 | N156: 0.001738236532 | O156: 0.004146682221 | P156: 0.003327000307 | Q156: 0 | R156: 0 | S156: 0.01341138742
A157: 2004 | B157: 1 | C157: 7 | D157: 11 | E157: 0.004543436831 | F157: 0.00208500496 | G157: 0.004153970668 | H157: 0.007948297747 | I157: 0 | J157: 0 | K157: 0.01873071021 | M157: 0.00392330656 | N157: 0.001753065905 | O157: 0.004183315016 | P157: 0.003011486601 | Q157: 0 | R157: 0 | S157: 0.01287117408
A158: 2004 | B158: 1 | C158: 7 | D158: 12 | E158: 0.00422365271 | F158: 0.002155272224 | G158: 0.004065513407 | H158: 0.009120062883 | I158: 0 | J158: 0 | K158: 0.01956450122 | M158: 0.003647169533 | N158: 0.001812146409 | O158: 0.004094232878 | P158: 0.003455450217 | Q158: 0 | R158: 0 | S158: 0.01300899904
A159: 2004 | B159: 1 | C159: 7 | D159: 13 | E159: 0.004077508941 | F159: 0.002027174103 | G159: 0.003951080292 | H159: 0.007925968429 | I159: 0 | J159: 0 | K159: 0.01798173176 | M159: 0.003520972816 | N159: 0.001704441893 | O159: 0.003978991387 | P159: 0.003003026369 | Q159: 0 | R159: 0 | S159: 0.01220743247
A160: 2004 | B160: 1 | C160: 7 | D160: 14 | E160: 0.004026986276 | F160: 0.00209336522 | G160: 0.004030046629 | H160: 0.009065051451 | I160: 0 | J160: 0 | K160: 0.01921544958 | M160: 0.003477345952 | N160: 0.001760095186 | O160: 0.004058515557 | P160: 0.003434607239 | Q160: 0 | R160: 0 | S160: 0.01273056393
A161: 2004 | B161: 1 | C161: 7 | D161: 15 | E161: 0.003784183557 | F161: 0.002074399976 | G161: 0.003950417706 | H161: 0.008535306813 | I161: 0 | J161: 0 | K161: 0.01834430805 | M161: 0.003267683193 | N161: 0.001744149266 | O161: 0.003978324121 | P161: 0.003233895222 | Q161: 0 | R161: 0 | S161: 0.0122240518
A162: 2004 | B162: 1 | C162: 7 | D162: 16 | E162: 0.004039189887 | F162: 0.002113867752 | G162: 0.003839779645 | H162: 0.008864487838 | I162: 0 | J162: 0 | K162: 0.01885732512 | M162: 0.003487883902 | N162: 0.001777333653 | O162: 0.003866904494 | P162: 0.003358616801 | Q162: 0 | R162: 0 | S162: 0.01249073885
A163: 2004 | B163: 1 | C163: 7 | D163: 17 | E163: 0.004752985609 | F163: 0.002237586363 | G163: 0.003644123931 | H163: 0.007214813949 | I163: 2.609845632e-06 | J163: 4.425833422e-05 | K163: 0.01789637803 | M163: 0.004104254183 | N163: 0.001881355889 | O163: 0.003669866635 | P163: 0.002733580979 | Q163: 3.835003213e-07 | R163: 1.784357739e-05 | S163: 0.01240728476
A164: 2004 | B164: 1 | C164: 7 | D164: 18 | E164: 0.005266665897 | F164: 0.002162711034 | G164: 0.003441332499 | H164: 0.00652299814 | I164: 1.562781628e-05 | J164: 0.0002650199336 | K164: 0.01767435532 | M164: 0.004547822636 | N164: 0.001818400938 | O164: 0.003465642651 | P164: 0.002471462711 | Q164: 2.296408834e-06 | R164: 0.000106847756 | S164: 0.0124124731
A165: 2004 | B165: 1 | C165: 7 | D165: 19 | E165: 0.005335267318 | F165: 0.002132052691 | G165: 0.003388483555 | H165: 0.006755559212 | I165: 1.562781628e-05 | J165: 0.0002650199336 | K165: 0.01789201053 | M165: 0.0046070607 | N165: 0.001792623495 | O165: 0.003412420373 | P165: 0.00255957649 | Q165: 2.296408834e-06 | R165: 0.000106847756 | S165: 0.01248082522
A166: 2004 | B166: 1 | C166: 7 | D166: 20 | E166: 0.006111953226 | F166: 0.001952203463 | G166: 0.003357084217 | H166: 0.008524697815 | I166: 1.562781628e-05 | J166: 0.0002650199336 | K166: 0.02022658647 | M166: 0.005277737333 | N166: 0.001641406805 | O166: 0.003380799225 | P166: 0.003229875637 | Q166: 2.296408834e-06 | R166: 0.000106847756 | S166: 0.01363896316
A167: 2004 | B167: 1 | C167: 7 | D167: 21 | E167: 0.005367226189 | F167: 0.002000689254 | G167: 0.003254226941 | H167: 0.008475940047 | I167: 1.562781628e-05 | J167: 0.0002650199336 | K167: 0.01937873018 | M167: 0.004634657529 | N167: 0.001682173512 | O167: 0.003277215347 | P167: 0.003211402076 | Q167: 2.296408834e-06 | R167: 0.000106847756 | S167: 0.01291459263
A168: 2004 | B168: 1 | C168: 7 | D168: 22 | E168: 0.005613259175 | F168: 0.001900926103 | G168: 0.002958755481 | H168: 0.008008346288 | I168: 1.562781628e-05 | J168: 0.0002650199336 | K168: 0.0187619348 | M168: 0.004847109658 | N168: 0.001598292955 | O168: 0.002979656627 | P168: 0.003034238061 | Q168: 2.296408834e-06 | R168: 0.000106847756 | S168: 0.01256844147
A169: 2004 | B169: 1 | C169: 7 | D169: 23 | E169: 0.005396035943 | F169: 0.001788551965 | G169: 0.002821601241 | H169: 0.008645610592 | I169: 1.562781628e-05 | J169: 0.0002650199336 | K169: 0.01893244749 | M169: 0.004659535061 | N169: 0.001503809117 | O169: 0.002841533507 | P169: 0.003275687611 | Q169: 2.296408834e-06 | R169: 0.000106847756 | S169: 0.01238970946
A170: 2004 | B170: 1 | C170: 7 | D170: 24 | E170: 0.004983109657 | F170: 0.001808068433 | G170: 0.002720779262 | H170: 0.008128682562 | I170: 1.562781628e-05 | J170: 0.0002650199336 | K170: 0.01792128766 | M170: 0.004302968773 | N170: 0.001520218505 | O170: 0.002739999304 | P170: 0.003079831607 | Q170: 2.296408834e-06 | R170: 0.000106847756 | S170: 0.01175216235
A171: 2004 | B171: 1 | C171: 8 | D171: 1 | E171: 0.004190574233 | F171: 0.001800755433 | G171: 0.002657289983 | H171: 0.008696896262 | I171: 1.562781628e-05 | J171: 0.0002650199336 | K171: 0.01762616366 | M171: 0.003618605912 | N171: 0.001514069757 | O171: 0.002676061526 | P171: 0.003295118955 | Q171: 2.296408834e-06 | R171: 0.000106847756 | S171: 0.01121300031
A172: 2004 | B172: 1 | C172: 8 | D172: 2 | E172: 0.00379413171 | F172: 0.001790031779 | G172: 0.002628858905 | H172: 0.008450631486 | I172: 1.562781628e-05 | J172: 0.0002650199336 | K172: 0.01694430163 | M172: 0.003276273531 | N172: 0.00150505334 | O172: 0.002647429606 | P172: 0.003201813055 | Q172: 2.296408834e-06 | R172: 0.000106847756 | S172: 0.0107397137
A173: 2004 | B173: 1 | C173: 8 | D173: 3 | E173: 0.00378688378 | F173: 0.001829401751 | G173: 0.002605922843 | H173: 0.00870520379 | I173: 1.562781628e-05 | J173: 0.0002650199336 | K173: 0.01720805991 | M173: 0.003270014865 | N173: 0.001538155495 | O173: 0.00262433152 | P173: 0.003298266548 | Q173: 2.296408834e-06 | R173: 0.000106847756 | S173: 0.01083991259
A174: 2004 | B174: 1 | C174: 8 | D174: 4 | E174: 0.003936069294 | F174: 0.001718751022 | G174: 0.002589114927 | H174: 0.008327825783 | I174: 1.562781628e-05 | J174: 0.0002650199336 | K174: 0.01685240878 | M174: 0.003398838161 | N174: 0.001445120694 | O174: 0.002607404871 | P174: 0.003155283881 | Q174: 2.296408834e-06 | R174: 0.000106847756 | S174: 0.01071579177
A175: 2004 | B175: 1 | C175: 8 | D175: 5 | E175: 0.004026046226 | F175: 0.001865450633 | G175: 0.002595549365 | H175: 0.006843297151 | I175: 1.562781628e-05 | J175: 0.0002650199336 | K175: 0.01561099112 | M175: 0.003476534209 | N175: 0.001568465287 | O175: 0.002613884762 | P175: 0.002592819033 | Q175: 2.296408834e-06 | R175: 0.000106847756 | S175: 0.01036084746
A176: 2004 | B176: 1 | C176: 8 | D176: 6 | E176: 0.004285294203 | F176: 0.001721223772 | G176: 0.002661624832 | H176: 0.006921287872 | I176: 1.562781628e-05 | J176: 0.0002650199336 | K176: 0.01587007843 | M176: 0.003700397625 | N176: 0.001447199775 | O176: 0.002680426998 | P176: 0.002622368506 | Q176: 2.296408834e-06 | R176: 0.000106847756 | S176: 0.01055953707
A177: 2004 | B177: 1 | C177: 8 | D177: 7 | E177: 0.004917733441 | F177: 0.001722425041 | G177: 0.003055424752 | H177: 0.006723299052 | I177: 1.562781628e-05 | J177: 0.0002650199336 | K177: 0.01669953004 | M177: 0.004246515708 | N177: 0.001448209798 | O177: 0.003077008786 | P177: 0.002547353616 | Q177: 2.296408834e-06 | R177: 0.000106847756 | S177: 0.01142823207
A178: 2004 | B178: 1 | C178: 8 | D178: 8 | E178: 0.004775418276 | F178: 0.001904469299 | G178: 0.003806681555 | H178: 0.006934546835 | I178: 1.562781628e-05 | J178: 0.0002650199336 | K178: 0.01770176371 | M178: 0.004123625032 | N178: 0.001601272063 | O178: 0.003833572594 | P178: 0.002627392121 | Q178: 2.296408834e-06 | R178: 0.000106847756 | S178: 0.01229500598
A179: 2004 | B179: 1 | C179: 8 | D179: 9 | E179: 0.00493372398 | F179: 0.002055455487 | G179: 0.004123171153 | H179: 0.008781976643 | I179: 5.204063134e-06 | J179: 8.825164319e-05 | K179: 0.01998778297 | M179: 0.00426032371 | N179: 0.001728220797 | O179: 0.004152297927 | P179: 0.00332735459 | Q179: 7.647041877e-07 | R179: 3.558030489e-05 | S179: 0.01350454203
A180: 2004 | B180: 1 | C180: 8 | D180: 10 | E180: 0.004846327709 | F180: 0.002067367679 | G180: 0.004134570192 | H180: 0.008698799568 | I180: 0 | J180: 0 | K180: 0.01974706515 | M180: 0.00418485609 | N180: 0.001738236532 | O180: 0.004163777492 | P180: 0.003295840088 | Q180: 0 | R180: 0 | S180: 0.0133827102
A181: 2004 | B181: 1 | C181: 8 | D181: 11 | E181: 0.004527166371 | F181: 0.00208500496 | G181: 0.00414369888 | H181: 0.008409895938 | I181: 0 | J181: 0 | K181: 0.01916576615 | M181: 0.003909256843 | N181: 0.001753065905 | O181: 0.004172970666 | P181: 0.003186378989 | Q181: 0 | R181: 0 | S181: 0.0130216724
A182: 2004 | B182: 1 | C182: 8 | D182: 12 | E182: 0.004208615639 | F182: 0.002155272224 | G182: 0.004087646337 | H182: 0.008471858287 | I182: 0 | J182: 0 | K182: 0.01892339249 | M182: 0.00363418486 | N182: 0.001812146409 | O182: 0.004116522158 | P182: 0.00320985556 | Q182: 0 | R182: 0 | S182: 0.01277270899
A183: 2004 | B183: 1 | C183: 8 | D183: 13 | E183: 0.004063204872 | F183: 0.002027174103 | G183: 0.003953601995 | H183: 0.007481732926 | I183: 0 | J183: 0 | K183: 0.0175257139 | M183: 0.0035086211 | N183: 0.001704441893 | O183: 0.003981530905 | P183: 0.002834712435 | Q183: 0 | R183: 0 | S183: 0.01202930633
A184: 2004 | B184: 1 | C184: 8 | D184: 14 | E184: 0.004014221666 | F184: 0.00209336522 | G184: 0.004033942334 | H184: 0.008599203069 | I184: 0 | J184: 0 | K184: 0.01874073229 | M184: 0.003466323574 | N184: 0.001760095186 | O184: 0.004062438781 | P184: 0.003258104521 | Q184: 0 | R184: 0 | S184: 0.01254696206
A185: 2004 | B185: 1 | C185: 8 | D185: 15 | E185: 0.003772156427 | F185: 0.002074399976 | G185: 0.003941253849 | H185: 0.007804563519 | I185: 0 | J185: 0 | K185: 0.01759237377 | M185: 0.003257297638 | N185: 0.001744149266 | O185: 0.003969095529 | P185: 0.002957027934 | Q185: 0 | R185: 0 | S185: 0.01192757037
A186: 2004 | B186: 1 | C186: 8 | D186: 16 | E186: 0.004025822511 | F186: 0.002113867752 | G186: 0.003839080861 | H186: 0.008047360731 | I186: 0 | J186: 0 | K186: 0.01802613185 | M186: 0.003476341028 | N186: 0.001777333653 | O186: 0.003866200774 | P186: 0.003049020028 | Q186: 0 | R186: 0 | S186: 0.01216889548
A187: 2004 | B187: 1 | C187: 8 | D187: 17 | E187: 0.004737156589 | F187: 0.002237586363 | G187: 0.003646821349 | H187: 0.007221681889 | I187: 2.609845632e-06 | J187: 4.425833422e-05 | K187: 0.01789011437 | M187: 0.004090585654 | N187: 0.001881355889 | O187: 0.003672583108 | P187: 0.002736183135 | Q187: 3.835003213e-07 | R187: 1.784357739e-05 | S187: 0.01239893486
A188: 2004 | B188: 1 | C188: 8 | D188: 18 | E188: 0.005250243902 | F188: 0.002162711034 | G188: 0.003450137413 | H188: 0.00664984779 | I188: 1.562781628e-05 | J188: 0.0002650199336 | K188: 0.01779358789 | M188: 0.004533642066 | N188: 0.001818400938 | O188: 0.003474509764 | P188: 0.002519524074 | Q188: 2.296408834e-06 | R188: 0.000106847756 | S188: 0.01245522101
A189: 2004 | B189: 1 | C189: 8 | D189: 19 | E189: 0.005318093601 | F189: 0.002132052691 | G189: 0.003399808962 | H189: 0.006336846678 | I189: 1.562781628e-05 | J189: 0.0002650199336 | K189: 0.01746744968 | M189: 0.004592231011 | N189: 0.001792623495 | O189: 0.003423825785 | P189: 0.002400932812 | Q189: 2.296408834e-06 | R189: 0.000106847756 | S189: 0.01231875727
A190: 2004 | B190: 1 | C190: 8 | D190: 20 | E190: 0.006091522903 | F190: 0.001952203463 | G190: 0.003383963149 | H190: 0.007886434763 | I190: 1.562781628e-05 | J190: 0.0002650199336 | K190: 0.01959477203 | M190: 0.00526009553 | N190: 0.001641406805 | O190: 0.003407868034 | P190: 0.002988047677 | Q190: 2.296408834e-06 | R190: 0.000106847756 | S190: 0.01340656221
A191: 2004 | B191: 1 | C191: 8 | D191: 21 | E191: 0.005348994667 | F191: 0.002000689254 | G191: 0.003303162012 | H191: 0.007972833371 | I191: 1.562781628e-05 | J191: 0.0002650199336 | K191: 0.01890632705 | M191: 0.004618914413 | N191: 0.001682173512 | O191: 0.003326496104 | P191: 0.003020782768 | Q191: 2.296408834e-06 | R191: 0.000106847756 | S191: 0.01275751096
A192: 2004 | B192: 1 | C192: 8 | D192: 22 | E192: 0.00559475033 | F192: 0.001900926103 | G192: 0.003035683831 | H192: 0.007921545605 | I192: 1.562781628e-05 | J192: 0.0002650199336 | K192: 0.01873355362 | M192: 0.004831127071 | N192: 0.001598292955 | O192: 0.003057128412 | P192: 0.00300135063 | Q192: 2.296408834e-06 | R192: 0.000106847756 | S192: 0.01259704323
A193: 2004 | B193: 1 | C193: 8 | D193: 23 | E193: 0.005378150495 | F193: 0.001788551965 | G193: 0.002904004152 | H193: 0.00819802728 | I193: 1.562781628e-05 | J193: 0.0002650199336 | K193: 0.01854938164 | M193: 0.004644090784 | N193: 0.001503809117 | O193: 0.002924518526 | P193: 0.003106105244 | Q193: 2.296408834e-06 | R193: 0.000106847756 | S193: 0.01228766784
A194: 2004 | B194: 1 | C194: 8 | D194: 24 | E194: 0.004966456522 | F194: 0.001808068433 | G194: 0.002757213351 | H194: 0.007598080626 | I194: 1.562781628e-05 | J194: 0.0002650199336 | K194: 0.01741046668 | M194: 0.004288588612 | N194: 0.001520218505 | O194: 0.00277669077 | P194: 0.002878794772 | Q194: 2.296408834e-06 | R194: 0.000106847756 | S194: 0.01157343682
A195: 2004 | B195: 1 | C195: 9 | D195: 1 | E195: 0.003887282989 | F195: 0.001853505801 | G195: 0.002677606672 | H195: 0.007748883741 | I195: 1.562781628e-05 | J195: 0.0002650199336 | K195: =SUM(E195:J195) -> 0.01644792695 | M195: 0.003356710662 | N195: 0.001558422107 | O195: 0.002696521736 | P195: 0.002935931731 | Q195: 2.296408834e-06 | R195: 0.000106847756 | S195: =SUM(M195:R195) -> 0.0106567304
A196: 2004 | B196: 1 | C196: 9 | D196: 2 | E196: 0.003549933296 | F196: 0.001799480415 | G196: 0.00263113959 | H196: 0.007739155912 | I196: 1.562781628e-05 | J196: 0.0002650199336 | K196: 0.01600035696 | M196: =E196*V$5 -> 0.003065405574 | N196: =F196*W$5 -> 0.001512997725 | O196: =G196*X$5 -> 0.002649726403 | P196: =H196*Y$5 -> 0.002932246007 | Q196: =I196*Z$5 -> 2.296408834e-06 | R196: =J196*AA$5 -> 0.000106847756 | S196: 0.01026951987
A197: 2004 | B197: 1 | C197: 9 | D197: 3 | E197: 0.003517275858 | F197: 0.001818466584 | G197: 0.002578566605 | H197: 0.008276511739 | I197: 1.562781628e-05 | J197: 0.0002650199336 | K197: 0.01647146854 | M197: 0.003037205525 | N197: 0.001528961239 | O197: 0.002596782034 | P197: 0.003135841786 | Q197: 2.296408834e-06 | R197: 0.000106847756 | S197: 0.01040793475
A198: 2004 | B198: 1 | C198: 9 | D198: 4 | E198: 0.003513173464 | F198: 0.001788433649 | G198: 0.002567166216 | H198: 0.007585324698 | I198: 1.562781628e-05 | J198: 0.0002650199336 | K198: 0.01573474578 | M198: 0.003033663064 | N198: 0.001503709638 | O198: 0.00258530111 | P198: 0.002873961749 | Q198: 2.296408834e-06 | R198: 0.000106847756 | S198: 0.01010577973
A199: 2004 | B199: 1 | C199: 9 | D199: 5 | E199: 0.003696587195 | F199: 0.001818238256 | G199: 0.002584209118 | H199: 0.006407752836 | I199: 1.562781628e-05 | J199: 0.0002650199336 | K199: 0.01478743516 | M199: 0.003192042793 | N199: 0.001528769262 | O199: 0.002602464406 | P199: 0.002427798055 | Q199: 2.296408834e-06 | R199: 0.000106847756 | S199: 0.00986021868
A200: 2004 | B200: 1 | C200: 9 | D200: 6 | E200: 0.00410097459 | F200: 0.001772969375 | G200: 0.002686371248 | H200: 0.006649348577 | I200: 1.562781628e-05 | J200: 0.0002650199336 | K200: 0.01549031154 | M200: 0.003541235657 | N200: 0.001490707322 | O200: 0.002705348227 | P200: 0.00251933493 | Q200: 2.296408834e-06 | R200: 0.000106847756 | S200: 0.0103657703
... 4297 more rows

Sheet 2006 Input to CA model
A2: Feed into OEB Cost Allocation Model (version 50) sheet "I6 Customer Data", row 27
D3: 1 | E3: 2 | F3: 3 | G3: 4 | H3: 5 | I3: 6 | J3: 7 | K3: 8 | L3: 9 | M3: 10 | N3: 11 | O3: 12 | P3: 13 | Q3: 14 | R3: 15 | S3: 16 | T3: 17 | U3: 18 | V3: 19 | W3: 20
B4: ID | C4: Total | D4: Residential | E4: GS>50kW | F4: Street Lighting | G4: Sentinel Lighting | H4: GS<50 kW | I4: Intermediate Use
A6: kWh - 30 year weather normalized amount | C6: 117394248.6 | D6: 27252917.78 | E6: 23215769.79 | F6: 1125333.42 | G6: 66176.72374 | H6: 13029066.17 | I6: 52704984.67
A9: Feed into OEB Cost Allocation Model sheet (version 50) "I8 Demand Data", row 40, 45, 50, 55, 61 and 67
D10: 1 | E10: 2 | F10: 3 | G10: 4 | H10: 5 | I10: 6 | J10: 7 | K10: 8 | L10: 9 | M10: 10 | N10: 11 | O10: 12 | P10: 13 | Q10: 14 | R10: 15 | S10: 16 | T10: 17 | U10: 18 | V10: 19 | W10: 20
A11: Customer Classes | C11: Total | D11: Residential | E11: GS>50kW | F11: Street Lighting | G11: Sentinel Lighting | H11: GS<50 kW | I11: Intermediate Use
A13: CO-INCIDENT PEAK (kW)
A15: 1 CP
A16: Total Sytem CP | B16: DCP1 | C16: 20665.51203 | D16: 5602.125684 | E16: 4189.787746 | F16: 88.25164319 | G16: 5.204063134 | H16: 1996.133384 | I16: 8784.009504
A18: 4 CP
A19: Total Sytem CP | B19: DCP4 | C19: 77906.48331 | D19: 20277.76432 | E19: 14949.5403 | F19: 413.6268728 | G19: 24.36977066 | H19: 7884.002261 | I19: 34357.17978
A21: 12 CP
A22: Total Sytem CP | B22: DCP12 | C22: 207861.3099 | D22: 45434.76569 | E22: 39616.17027 | F22: 678.8108559 | G22: 39.91380788 | H22: 19540.40224 | I22: 102551.2471
A24: NON CO_INCIDENT PEAK (kW)
A26: 1 NCP
A27: Classification NCP from Load Data Provider | B27: DNCP1 | C27: 23822.05999 | D27: 7713.615672 | E27: 4242.611032 | F27: 269.1950995 | G27: 15.87406409 | H27: 2460.701238 | I27: 9120.062883
A29: 4 NCP
A30: Classification NCP from Load Data Provider | B30: DNCP4 | C30: 88383.42134 | D30: 25897.20786 | E30: 16100.92404 | F30: 1064.659741 | G30: 62.74149277 | H30: 9088.162121 | I30: 36169.72608
A32: 12 NCP
A33: Classification NCP from Load Data Provider | B33: DNCP12 | C33: 230746.2608 | D33: 57815.0542 | E33: 42285.09205 | F33: 3151.17763 | G33: 185.345773 | H33: 22440.96793 | I33: 104868.6232

Sheet Revised Inputs to CA model
A2: Feed into OEB Cost Allocation Model (version 50) sheet "I6 Customer Data", row 27
B4: ID | C4: Total | D4: ='Hourly load shapes by class'!E2 -> Residential | E4: ='Hourly load shapes by class'!F2 -> GS<50 kW | F4: ='Hourly load shapes by class'!G2 -> GS>50kW | G4: ='Hourly load shapes by class'!H2 -> Intermediate Use | H4: ='Hourly load shapes by class'!I2 -> Sentinel Lighting | I4: ='Hourly load shapes by class'!J2 -> Street Lighting
A6: kWh - 30 year weather normalized amount | C6: =SUM(D6:I6) -> 136980465.8 | D6: ='Hourly load shapes by class'!V4 -> 23652428.88 | E6: ='Hourly load shapes by class'!X4 -> 23398367.19 | F6: ='Hourly load shapes by class'!W4 -> 10991463.15 | G6: ='Hourly load shapes by class'!Z4 -> 9724.251314 | H6: ='Hourly load shapes by class'!AA4 -> 453699.2709 | I6: ='Hourly load shapes by class'!AB4 -> 78474783.07
A9: Feed into OEB Cost Allocation Model sheet (version 50) "I8 Demand Data", row 40, 45, 50, 55, 61 and 67 | K9: 2021 Demand Data
A11: Customer Classes | C11: Total | D11: ='Hourly load shapes by class'!E2 -> Residential | E11: ='Hourly load shapes by class'!F2 -> GS<50 kW | F11: ='Hourly load shapes by class'!G2 -> GS>50kW | G11: ='Hourly load shapes by class'!H2 -> Intermediate Use | H11: ='Hourly load shapes by class'!I2 -> Sentinel Lighting | I11: ='Hourly load shapes by class'!J2 -> Street Lighting | K11: =D11 -> Residential | L11: =E11 -> GS<50 kW | M11: =F11 -> GS>50kW | N11: =G11 -> Intermediate Use | O11: Sentinel Lighting | P11: Street Lighting
A13: CO-INCIDENT PEAK (kW)
A15: 1 CP
A16: Total Sytem CP | B16: DCP1 | C16: =SUM(D16:I16) -> 20665.51203 | D16: ='Hourly load shapes by class'!E8802*1000000 -> 5602.125684 | E16: ='Hourly load shapes by class'!F8802*1000000 -> 1996.133384 | F16: ='Hourly load shapes by class'!G8802*1000000 -> 4189.787746 | G16: ='Hourly load shapes by class'!H8802*1000000 -> 8784.009504 | H16: ='Hourly load shapes by class'!I8802*1000000 -> 5.204063134 | I16: ='Hourly load shapes by class'!J8802*1000000 -> 88.25164319 | K16: ='Hourly load shapes by class'!M8815*1000000 -> 4837.495769 | L16: ='Hourly load shapes by class'!N8815*1000000 -> 1678.342951 | M16: ='Hourly load shapes by class'!O8815*1000000 -> 4219.385112 | N16: ='Hourly load shapes by class'!P8815*1000000 -> 3328.12481 | O16: ='Hourly load shapes by class'!Q8815*1000000 -> 0.7647041877 | P16: ='Hourly load shapes by class'!R8815*1000000 -> 35.58030489
A18: 4 CP
A19: Total Sytem CP | B19: DCP4 | C19: =SUM(D19:I19) -> 77906.48331 | D19: =SUM('Hourly load shapes by class'!E8815:E8818)*1000000 -> 20277.76432 | E19: =SUM('Hourly load shapes by class'!F8815:F8818)*1000000 -> 7884.002261 | F19: =SUM('Hourly load shapes by class'!G8815:G8818)*1000000 -> 14949.5403 | G19: =SUM('Hourly load shapes by class'!H8815:H8818)*1000000 -> 34357.17978 | H19: =SUM('Hourly load shapes by class'!I8815:I8818)*1000000 -> 24.36977066 | I19: =SUM('Hourly load shapes by class'!J8815:J8818)*1000000 -> 413.6268728 | K19: =SUM('Hourly load shapes by class'!M8815:M8818)*1000000 -> 19683.71409 | L19: =SUM('Hourly load shapes by class'!N8815:N8818)*1000000 -> 6502.115032 | M19: =SUM('Hourly load shapes by class'!O8815:O8818)*1000000 -> 15485.40532 | N19: =SUM('Hourly load shapes by class'!P8815:P8818)*1000000 -> 11119.71391 | O19: =SUM('Hourly load shapes by class'!Q8815:Q8818)*1000000 -> 2.835844009 | P19: =SUM('Hourly load shapes by class'!R8815:R8818)*1000000 -> 132.5254647
A21: 12 CP
A22: Total Sytem CP | B22: DCP12 | C22: =SUM(D22:I22) -> 207861.3099 | D22: =SUM('Hourly load shapes by class'!E8802:E8813)*1000000 -> 45434.76569 | E22: =SUM('Hourly load shapes by class'!F8802:F8813)*1000000 -> 19540.40224 | F22: =SUM('Hourly load shapes by class'!G8802:G8813)*1000000 -> 39616.17027 | G22: =SUM('Hourly load shapes by class'!H8802:H8813)*1000000 -> 102551.2471 | H22: =SUM('Hourly load shapes by class'!I8802:I8813)*1000000 -> 39.91380788 | I22: =SUM('Hourly load shapes by class'!J8802:J8813)*1000000 -> 678.8108559 | K22: =SUM('Hourly load shapes by class'!M8802:M8813)*1000000 -> 44149.69646 | L22: =SUM('Hourly load shapes by class'!N8802:N8813)*1000000 -> 16274.40005 | M22: =SUM('Hourly load shapes by class'!O8802:O8813)*1000000 -> 39268.46942 | N22: =SUM('Hourly load shapes by class'!P8802:P8813)*1000000 -> 35769.91321 | O22: =SUM('Hourly load shapes by class'!Q8802:Q8813)*1000000 -> 6.628480116 | P22: =SUM('Hourly load shapes by class'!R8802:R8813)*1000000 -> 309.9429526
A24: NON CO_INCIDENT PEAK (kW)
A26: 1 NCP
A27: Classification NCP from Load Data Provider | B27: DNCP1 | C27: =SUM(D27:I27) -> 22570.27548 | D27: ='Hourly load shapes by class'!E8788*1000000 -> 6662.002808 | E27: ='Hourly load shapes by class'!F8788*1000000 -> 2265.832566 | F27: ='Hourly load shapes by class'!G8788*1000000 -> 4241.729474 | G27: ='Hourly load shapes by class'!H8788*1000000 -> 9120.062883 | H27: ='Hourly load shapes by class'!I8788*1000000 -> 15.62781628 | I27: ='Hourly load shapes by class'!J8788*1000000 -> 265.0199336 | K27: ='Hourly load shapes by class'!M8788*1000000 -> 5752.711062 | L27: ='Hourly load shapes by class'!N8788*1000000 -> 1905.105212 | M27: ='Hourly load shapes by class'!O8788*1000000 -> 4271.693765 | N27: ='Hourly load shapes by class'!P8788*1000000 -> 3455.450217 | O27: ='Hourly load shapes by class'!Q8788*1000000 -> 2.296408834 | P27: ='Hourly load shapes by class'!R8788*1000000 -> 106.847756
A29: 4 NCP
A30: Classification NCP from Load Data Provider | B30: DNCP4 | C30: =SUM(D30:I30) -> 88383.42134 | D30: =(LARGE('Hourly load shapes by class'!E8788:E8799,1)+LARGE('Hourly load shapes by class'!E8788:E8799,2)+LARGE('Hourly load shapes by class'!E8788:E8799,3)+LARGE('Hourly load shapes by class'!E8788:E8799,4))*1000000 -> 25897.20786 | E30: =(LARGE('Hourly load shapes by class'!F8788:F8799,1)+LARGE('Hourly load shapes by class'!F8788:F8799,2)+LARGE('Hourly load shapes by class'!F8788:F8799,3)+LARGE('Hourly load shapes by class'!F8788:F8799,4))*1000000 -> 9088.162121 | F30: =(LARGE('Hourly load shapes by class'!G8788:G8799,1)+LARGE('Hourly load shapes by class'!G8788:G8799,2)+LARGE('Hourly load shapes by class'!G8788:G8799,3)+LARGE('Hourly load shapes by class'!G8788:G8799,4))*1000000 -> 16100.92404 | G30: =(LARGE('Hourly load shapes by class'!H8788:H8799,1)+LARGE('Hourly load shapes by class'!H8788:H8799,2)+LARGE('Hourly load shapes by class'!H8788:H8799,3)+LARGE('Hourly load shapes by class'!H8788:H8799,4))*1000000 -> 36169.72608 | H30: =(LARGE('Hourly load shapes by class'!I8788:I8799,1)+LARGE('Hourly load shapes by class'!I8788:I8799,2)+LARGE('Hourly load shapes by class'!I8788:I8799,3)+LARGE('Hourly load shapes by class'!I8788:I8799,4))*1000000 -> 62.74149277 | I30: =(LARGE('Hourly load shapes by class'!J8788:J8799,1)+LARGE('Hourly load shapes by class'!J8788:J8799,2)+LARGE('Hourly load shapes by class'!J8788:J8799,3)+LARGE('Hourly load shapes by class'!J8788:J8799,4))*1000000 -> 1064.659741 | K30: =(LARGE('Hourly load shapes by class'!M8788:M8799,1)+LARGE('Hourly load shapes by class'!M8788:M8799,2)+LARGE('Hourly load shapes by class'!M8788:M8799,3)+LARGE('Hourly load shapes by class'!M8788:M8799,4))*1000000 -> 22362.51747 | L30: =(LARGE('Hourly load shapes by class'!N8788:N8799,1)+LARGE('Hourly load shapes by class'!N8788:N8799,2)+LARGE('Hourly load shapes by class'!N8788:N8799,3)+LARGE('Hourly load shapes by class'!N8788:N8799,4))*1000000 -> 7641.299399 | M30: =(LARGE('Hourly load shapes by class'!O8788:O8799,1)+LARGE('Hourly load shapes by class'!O8788:O8799,2)+LARGE('Hourly load shapes by class'!O8788:O8799,3)+LARGE('Hourly load shapes by class'!O8788:O8799,4))*1000000 -> 16214.66368 | N30: =(LARGE('Hourly load shapes by class'!P8788:P8799,1)+LARGE('Hourly load shapes by class'!P8788:P8799,2)+LARGE('Hourly load shapes by class'!P8788:P8799,3)+LARGE('Hourly load shapes by class'!P8788:P8799,4))*1000000 -> 13704.1476 | O30: =(LARGE('Hourly load shapes by class'!Q8788:Q8799,1)+LARGE('Hourly load shapes by class'!Q8788:Q8799,2)+LARGE('Hourly load shapes by class'!Q8788:Q8799,3)+LARGE('Hourly load shapes by class'!Q8788:Q8799,4))*1000000 -> 9.219465835 | P30: =(LARGE('Hourly load shapes by class'!R8788:R8799,1)+LARGE('Hourly load shapes by class'!R8788:R8799,2)+LARGE('Hourly load shapes by class'!R8788:R8799,3)+LARGE('Hourly load shapes by class'!R8788:R8799,4))*1000000 -> 429.2375395
A32: 12 NCP
A33: Classification NCP from Load Data Provider | B33: DNCP12 | C33: =SUM(D33:I33) -> 230746.2608 | D33: =SUM('Hourly load shapes by class'!E8788:E8799)*1000000 -> 57815.0542 | E33: =SUM('Hourly load shapes by class'!F8788:F8799)*1000000 -> 22440.96793 | F33: =SUM('Hourly load shapes by class'!G8788:G8799)*1000000 -> 42285.09205 | G33: =SUM('Hourly load shapes by class'!H8788:H8799)*1000000 -> 104868.6232 | H33: =SUM('Hourly load shapes by class'!I8788:I8799)*1000000 -> 185.345773 | I33: =SUM('Hourly load shapes by class'!J8788:J8799)*1000000 -> 3151.17763 | K33: =SUM('Hourly load shapes by class'!M8788:M8799)*1000000 -> 49923.92099 | L33: =SUM('Hourly load shapes by class'!N8788:N8799)*1000000 -> 18868.2984 | M33: =SUM('Hourly load shapes by class'!O8788:O8799)*1000000 -> 42583.80105 | N33: =SUM('Hourly load shapes by class'!P8788:P8799)*1000000 -> 39733.093 | O33: =SUM('Hourly load shapes by class'!Q8788:Q8799)*1000000 -> 27.23538995 | P33: =SUM('Hourly load shapes by class'!R8788:R8799)*1000000 -> 1270.456354
